Cogmind - Beta 11.1 @@@ ROGUE MODE // 2022.11.20 @ 11:23:00 Player: aperiodic Result: Destroyed by H-88 Terminator with KE Penetrator Performance ------------- Evolutions (9) 4500 Regions Visited (35) 7000 Robots Destroyed (747) 3735 Value Destroyed (33963) 33963 Prototype IDs (154) 3080 Alien Tech Used (8) 1600 Bonus (24974) 24974 TOTAL SCORE: 78852 Bonus ------- Triggered High Security 1000 High Alert Combat Kills 13550 Follower Combat Kills 3688 Network Hubs Disabled 400 Aligned with FarCom 300 Met Data Miner 300 Met Zhirov 300 Met Warlord at Base 500 MAIN.C Attacked Warlord 500 Warlord Defense Kills 180 Built Enhanced Grunts 300 A7 Reached Mainframe 300 Met R17 at Cetus 500 Used Core Reset Matrix 3000 Met Warlord at Research 2000 Scanned by Researcher 500 Friendly Fire -2344 Cogmind --------- Core Integrity 0/1600 Matter 300/300 Energy 99/100 System Corruption 15% Temperature Cool (0) Movement Core (50) Location -1/Access Parts ------- > --- POWER (2) -------- (None) > --- PROPULSION (6) --- (None) > --- UTILITY (15) ----- (None) > --- WEAPON (2) ------- (None) > --- INVENTORY (5) ---- Subatomic Replicator Core Cannon Peak State ------------ > --- POWER ------------ Light Quantum Reactor Light Quantum Reactor > --- PROPULSION ------- Armored Heavy Treads Biometal Heavy Treads Experimental Biometal Heavy Treads > --- UTILITY ---------- Advanced Cooling System Experimental Cooling System Huge Storage Unit Experimental Energy Well Enhanced Optical Array Long-range Sensor Array Experimental Targeting Computer Improved Particle Accelerator Advanced Powered Armor Advanced Powered Armor Advanced Powered Armor SHELL Armor Graphene Brace > --- WEAPON ----------- Sigix Shearcannon > --- INVENTORY -------- Improved Heavy Treads Advanced Heavy Siege Treads Experimental Cooling System Advanced Energy Well Experimental Energy Well Experimental Transmission Jammer Advanced Powered Armor Advanced Powered Armor Advanced EM Disruption Field Advanced Dynamic Insulation System Long-range Tractor Beam Integrity Redistributor Subatomic Replicator Long-range Phase Cannon Enhanced Nova Cannon Improved Potential Cannon Core Cannon Advanced KE Penetrator Tesla Bomb Launcher Enhanced Gamma Bomb Array Field Lobotomy Kit [Rating: 235] Favorites ----------- Power Quantum Reactor Engine Reinforced Ion Engine Power Core Reinforced Fission Core Reactor Quantum Reactor Propulsion Armored Huge Wheel Treads Centrium Heavy Treads Leg Enhanced Biometal Leg Wheel Armored Huge Wheel Utility Huge Storage Unit Device Heat Sink Storage Huge Storage Unit Processor Experimental Targeting Computer Hackware Improved Hacking Suite Protection Damper Plating Artifact Phase Redirector Weapon Advanced KE Penetrator Energy Gun Cooled Pulse Rifle Energy Cannon Cooled Plasma Cannon Ballistic Gun Advanced KE Penetrator Ballistic Cannon Advanced Assault Cannon Launcher Tesla Bomb Launcher Special Weapon Mining Laser Impact Weapon Shock Maul Slashing Weapon Segregator Build | -11 -10 -10 -9 -9 -9 -8 -8 -7 -7 -7 -7 -6 -6 -6 -6 -6 -6 -6 -6 -5 -5 -5 -5 -4 -4 -4 -4 -4 -3 -3 -3 -2 -2 -2 -1 ------- Run | Scr Mat Min Mat Min Exi Min Mat Fac Low Low Dat Pro Fac Was Fac Ext Cet Arc Hub Fac Upp Upp Zhi Pro Fac Upp Upp War Pro Res Tes Res Qua Sec Acc Slots Evolved 18 | . . . 2 . . . 2 2 . . . . 2 . . . . . . 2 . . . . 2 . . . . 2 . 2 . . 2 Power 1 | . . . . . . . . . . . . . . . . . . . . . . . . . . . . . . 1 . . . . . Propulsion 4 | . . . . . . . . . . . . . 2 . . . . . . 2 . . . . . . . . . . . 1 . . -1 Utility 13 | . . . 1 . . . 2 2 . . . . . . . . . . . . . . . . 2 . . . . 1 . 1 . . 4 Weapon . | . . . 1 . . . . . . . . . . . . . . . . . . . . . . . . . . . . . . . -1 Parts Attached 796 | 7 23 3 50 9 33 4 38 80 8 3 3 11 76 11 1 7 8 3 19 14 2 . 3 . 35 4 13 15 3 42 89 40 27 52 60 Power 58 | 1 2 1 3 . 1 . . 6 1 1 . 1 5 1 . . 1 1 1 . . . . . 1 . 1 1 . 5 12 6 . 1 5 Engine 14 | 1 1 1 3 . . . . 5 1 . . . 2 . . . . . . . . . . . . . . . . . . . . . . Core 7 | . 1 . . . 1 . . 1 . 1 . . 3 . . . . . . . . . . . . . . . . . . . . . . Reactor 37 | . . . . . . . . . . . . 1 . 1 . . 1 1 1 . . . . . 1 . 1 1 . 5 12 6 . 1 5 Propulsion 111 | 2 12 . 10 . 8 . 2 1 . . . 1 5 1 . 1 3 . 4 6 . . . . 2 . . 3 . 7 19 15 1 3 5 Treads 32 | . 6 . 2 . 2 . . . . . . . . 1 . 1 2 . . . . . . . . . . . . . . 9 1 3 5 Leg 45 | . . . . . 2 . . . . . . . . . . . . . 2 6 . . . . 2 . . 3 . 7 17 6 . . . Wheel 34 | 2 6 . 8 . 4 . 2 1 . . . 1 5 . . . 1 . 2 . . . . . . . . . . . 2 . . . . Hover . | . . . . . . . . . . . . . . . . . . . . . . . . . . . . . . . . . . . . Flight . | . . . . . . . . . . . . . . . . . . . . . . . . . . . . . . . . . . . . Utility 333 | 2 4 . 12 5 10 3 17 33 1 . . 4 42 7 . 2 2 2 11 5 2 . 3 . 18 2 6 8 3 17 25 15 19 30 23 Device 166 | 1 2 . 3 2 3 3 10 17 1 . . . 25 2 . . . 1 6 2 1 . . . 10 . 2 4 2 5 8 9 13 24 10 Storage 29 | 1 2 . 1 . 3 . . 1 . . . . 1 . . 1 . . 2 . . . . . 1 1 . . . . 4 2 4 2 3 Processor 12 | . . . . . 2 . . . . . . . . 3 . . . . . . . . . . . . . 1 . 1 3 2 . . . Hackware 9 | . . . . . . . 1 . . . . . 3 . . . . . . 2 . . . . 1 . . 1 . . . . 1 . . Protection 115 | . . . 8 3 2 . 6 15 . . . 4 13 2 . 1 2 1 3 1 1 . 3 . 6 1 4 2 1 11 10 2 . 3 10 Artifact 2 | . . . . . . . . . . . . . . . . . . . . . . . . . . . . . . . . . 1 1 . Weapon 294 | 2 5 2 25 4 14 1 19 40 6 2 3 5 24 2 1 4 2 . 3 3 . . . . 14 2 6 3 . 13 33 4 7 18 27 Energy Gun 50 | 1 2 1 4 . . . 3 13 1 . . . . . . . . . . . . . . . . . 3 3 . 10 9 . . . . Energy Cannon 67 | . . . 8 . 1 . 6 . . . . . . . 1 2 . . 2 . . . . . 3 . 1 . . . 14 2 4 11 12 Ballistic Gun 95 | 1 3 . 8 2 12 1 9 9 4 1 3 3 4 2 . . 2 . 1 2 . . . . 7 1 2 . . . 7 2 2 3 4 Ballistic Cannon 17 | . . . . . . . . 3 . . . . 9 . . . . . . . . . . . . . . . . 2 3 . . . . Launcher 49 | . . 1 4 2 1 . 1 12 1 1 . 2 5 . . 2 . . . 1 . . . . 3 1 . . . 1 . . 1 3 7 Special Weapon 7 | . . . 1 . . . . 1 . . . . . . . . . . . . . . . . 1 . . . . . . . . 1 3 Impact Weapon 8 | . . . . . . . . 2 . . . . 6 . . . . . . . . . . . . . . . . . . . . . . Slashing Weapon 1 | . . . . . . . . . . . . . . . . . . . . . . . . . . . . . . . . . . . 1 Piercing Weapon . | . . . . . . . . . . . . . . . . . . . . . . . . . . . . . . . . . . . . Special Melee Weapon . | . . . . . . . . . . . . . . . . . . . . . . . . . . . . . . . . . . . . Unidentified Prototypes 66 | . . . . 1 4 1 2 4 . . . . 1 . 1 1 3 . 6 . . . 2 . 5 . 1 3 . 5 16 3 2 4 1 Corrupted Parts 6 | . . . 1 . . . . . . . . . . . . . . 1 1 . . . . . . . . . . . 3 . . . . System Corruption 29 | . . . 1 . . . . . . . . . . . . . . 4 6 . . . . . . . . . . . 18 . . . . Parts Lost 116 | . . . 3 . 4 1 10 4 . . . 5 5 . . . . . 2 . . . . . 1 1 6 1 . 18 26 1 2 8 18 Power 10 | . . . 1 . 1 . . 1 . . . . . . . . . . . . . . . . . . 1 . . 1 2 . . 2 1 Propulsion 20 | . . . . . . . 1 . . . . 1 . . . . . . . . . . . . . . . . . 5 7 1 1 1 3 Utility 60 | . . . 2 . 3 . 5 3 . . . 2 4 . . . . . 1 . . . . . 1 . 3 1 . 9 11 . 1 3 11 Weapon 26 | . . . . . . 1 4 . . . . 2 1 . . . . . 1 . . . . . . 1 2 . . 3 6 . . 2 3 Highest Loss Streak 11 | . . . 1 . 3 1 4 1 . . . 3 2 . . . . . 2 . . . . . 1 1 4 1 . 2 6 1 1 3 11 To Critical Strikes 1 | . . . . . 1 . . . . . . . . . . . . . . . . . . . . . . . . . . . . . . Average Slot Usage (%) 80 | . 100 100 97 100 98 99 89 82 76 76 54 81 81 73 66 65 65 65 65 81 82 82 81 82 83 99 92 99 94 91 91 76 76 71 61 Engine 1 | . 12 11 9 11 6 . . 4 4 6 . . . . . . . . . . . . . . . . . . . . . . . . . Core 1 | . 1 2 . . 4 11 9 2 2 . 7 5 3 3 . . . . . . . . . . . . . . . . . . . . . Reactor 3 | . . . . . . . . . . . . 1 1 2 6 6 6 6 6 5 5 5 5 5 5 5 4 5 5 7 7 7 8 6 3 Treads 4 | . 5 . . . 12 . . . . . . . . . 6 5 6 6 4 . . . . . . . . . . . . 14 17 15 10 Leg 5 | . . . . . . . . . . . . . . . . . . . . 34 35 35 35 35 30 31 31 31 31 27 24 4 . . . Wheel 6 | . 22 28 21 22 9 22 9 7 7 7 7 6 12 12 6 6 5 6 7 . . . . . . . . . . . 2 . . . . Device 6 | . 13 14 11 11 6 10 10 14 7 7 7 7 8 1 . . . . 1 2 . . . . 5 12 5 12 10 11 5 7 4 8 11 Storage 6 | . 14 14 11 11 7 11 9 7 7 7 7 7 6 6 6 6 6 6 6 5 5 5 5 5 5 5 5 5 5 4 7 8 7 8 8 Processor 9 | . . . . . 7 11 9 7 7 7 7 7 6 19 13 13 13 13 11 5 5 5 5 5 5 5 5 6 10 8 13 15 14 13 8 Hackware 2 | . . . . . . . 8 2 . . . . 6 2 . . . . . 2 5 5 5 5 9 10 10 10 10 9 8 . 3 2 . Protection 8 | . . . 10 10 11 . 7 11 15 15 15 23 12 2 6 5 5 5 5 5 5 5 4 5 6 12 14 10 5 9 7 5 4 4 13 Energy Gun 3 | . 18 27 7 . . . 6 15 2 . . . . . . . . . . . . . . . . . . 14 15 6 3 . . . . Energy Cannon 1 | . . . 11 . . . 7 . . . . . . . 4 5 . . 1 5 5 5 5 5 2 . . . . . 1 5 4 7 3 Ballistic Gun 13 | . 9 . 13 33 30 32 12 6 16 23 1 19 6 13 13 13 19 20 18 11 11 11 11 11 11 14 12 . . . 4 4 4 1 . Ballistic Cannon 1 | . . . . . . . . . . . . . 9 6 1 . . . . . . . . . . . . . . 2 . . . . . Naked Turns 111 | . . . . . . . . . . . . . . . . . . . . . . . . . . . . . . . . . . . 111 Heaviest Build 232 | 12 91 52 111 111 117 117 126 139 141 140 140 140 143 157 159 159 163 162 162 158 156 156 156 156 161 128 128 134 140 172 161 188 184 199 232 Greatest Support 260 | 26 40 24 24 24 40 24 28 28 28 28 28 28 56 56 28 28 160 28 80 176 176 176 176 176 176 176 176 178 178 178 166 260 260 240 240 Greatest Overweight (x) 53 | 1 3 2 8 4 4 4 5 4 5 4 4 4 2 5 5 5 5 53 5 . . . . . . . . . . 1 1 1 . 1 3 Average Overweight (x) 2 | . 2 2 3 4 2 4 4 3 4 4 4 4 1 1 5 4 4 28 3 . . . . . . . . . . . . . . . . Largest Inventory Capacity 25 | 8 25 20 25 25 25 25 25 25 25 25 25 25 25 25 25 25 25 25 25 25 25 25 25 25 25 25 25 25 25 25 25 25 25 25 25 Average Capacity 23 | 7 20 20 24 25 15 25 25 25 25 25 25 25 25 25 25 25 25 25 25 25 25 25 25 25 25 25 25 25 25 25 25 25 25 25 22 Most Carried 25 | 5 21 20 25 25 25 25 25 25 25 25 21 22 25 25 25 25 25 25 25 23 22 22 24 24 25 25 24 25 25 25 25 25 25 25 25 Average Carried 22 | 3 16 20 23 24 11 24 23 24 25 24 21 18 23 23 24 24 24 24 23 18 21 22 22 24 22 24 20 21 24 23 23 23 24 23 20 Final Capacity 25 | 8 20 20 25 25 25 25 25 25 25 25 25 25 25 25 25 25 25 25 25 25 25 25 25 25 25 25 25 25 25 25 25 25 25 25 5 Final Carried 25 | 5 20 20 25 25 25 24 25 25 25 21 21 18 25 25 25 25 25 25 24 23 22 22 24 24 25 24 19 25 25 25 22 25 22 24 3 Class Distribution -------------------- 23% | Commander-Gunner 18% | Scavenger-Gunner 13% | Scavenger-Tank 13% | Scavenger-Mutant 12% | Tank 9% | Mutant 4% | Gunner Dominant Class ---------------- Mutant | -10/Materials Mutant | -10/Mines Tank | -9/Materials Tank | -9/Mines Tank | -9/Exiles Gunner | -8/Mines Scavenger-Gunner | -8/Materials Scavenger-Tank | -7/Factory Tank | -7/Lower Caves Tank | -7/Lower Caves Mutant | -7/Data Miner Tank | -6/Proximity Caves Tank | -6/Factory Mutant | -6/Waste Scavenger-Gunner | -6/Factory Commander-Gunner | -6/Extension Scavenger-Gunner | -6/Cetus Commander-Gunner | -6/Archives Scavenger-Gunner | -6/Hub_04(d) Scavenger-Gunner | -5/Factory Scavenger-Gunner | -5/Upper Caves Scavenger-Gunner | -5/Upper Caves Scavenger-Gunner | -5/Zhirov Scavenger-Gunner | -4/Proximity Caves Scavenger-Tank | -4/Factory Scavenger-Tank | -4/Upper Caves Scavenger-Tank | -4/Upper Caves Scavenger-Tank | -4/Warlord Scavenger-Tank | -3/Proximity Caves Scavenger-Tank | -3/Research Scavenger-Mutant | -3/Testing Scavenger-Mutant | -2/Research Scavenger-Gunner | -2/Quarantine Scavenger-Mutant | -2/Section 7 Scavenger-Mutant | -1/Access Resources | -11 -10 -10 -9 -9 -9 -8 -8 -7 -7 -7 -7 -6 -6 -6 -6 -6 -6 -6 -6 -5 -5 -5 -5 -4 -4 -4 -4 -4 -3 -3 -3 -2 -2 -2 -1 ----------- Run | Scr Mat Min Mat Min Exi Min Mat Fac Low Low Dat Pro Fac Was Fac Ext Cet Arc Hub Fac Upp Upp Zhi Pro Fac Upp Upp War Pro Res Tes Res Qua Sec Acc Matter Collected 21861 | 291 300 23 794 168 1027 361 1071 1518 203 97 . 755 2806 311 50 197 216 414 949 254 78 . 48 40 1279 239 267 312 30 1883 3093 896 393 699 799 Remotely 2379 | . . . . . . . 267 147 . . . . 442 . . . . . 254 73 . . . . 712 . . . . . . 68 72 344 . Salvage Created 38396 | 139 733 108 1549 113 543 325 2383 4295 499 196 . 759 3470 518 30 288 207 359 2025 431 . . 108 50 893 170 355 154 149 2713 3713 1464 844 2554 6259 Parts 1670 | 6 44 7 100 17 72 15 128 182 16 8 . 32 124 16 4 11 6 19 98 23 . . 3 2 47 3 18 2 10 112 112 54 45 114 220 Haulers Intercepted 38 | . 2 . 4 . . . 6 6 . . . . 6 . . . . . 4 2 . . . . 1 . . . . 2 2 2 1 . . Recyclers Shooed 21 | . . . 2 . . 1 1 3 . . . . 1 . . 1 . . 2 . . . . . 2 . . . . . . . . 1 7 Parts Field Recycled . | . . . . . . . . . . . . . . . . . . . . . . . . . . . . . . . . . . . . Retrieved Matter . | . . . . . . . . . . . . . . . . . . . . . . . . . . . . . . . . . . . . Parts Self-Destructed 90 | . . . . . . . . . 5 . . 36 . . . . . . . . . . 3 2 . 3 19 . 22 . . . . . . Prevented 12 | . . . . . . . . . 3 3 . 1 . . . . . . . . . . . 1 . . 4 . . . . . . . . Kills | -11 -10 -10 -9 -9 -9 -8 -8 -7 -7 -7 -7 -6 -6 -6 -6 -6 -6 -6 -6 -5 -5 -5 -5 -4 -4 -4 -4 -4 -3 -3 -3 -2 -2 -2 -1 ------- Run | Scr Mat Min Mat Min Exi Min Mat Fac Low Low Dat Pro Fac Was Fac Ext Cet Arc Hub Fac Upp Upp Zhi Pro Fac Upp Upp War Pro Res Tes Res Qua Sec Acc Combat Hostiles Destroyed 546 | . 13 4 34 7 3 6 36 65 7 4 . 14 46 . . 4 2 . 12 7 . . . 1 19 5 6 1 4 56 49 17 12 46 66 Melee 9 | . . . . . 1 . . . . . . . 5 . . . . . . . . . . . . . . . . . . . . . 3 Guns 238 | . 13 2 19 2 1 6 14 35 4 2 . 12 11 . . 3 2 . 10 . . . . . 8 3 6 1 4 34 26 12 1 3 4 Cannons 131 | . . . 8 . . . 19 1 . . . . 15 . . 1 . . 2 3 . . . 1 1 . . . . 14 11 4 8 19 24 AOE 110 | . . 2 7 5 1 . . 19 3 1 . 2 9 . . . . . . 4 . . . . 10 2 . . . 7 2 1 1 19 15 Classes Destroyed 28 | 2 4 1 5 . 3 . 3 2 . 1 . . . 1 . . . . . . . . . . . . 1 1 . . 1 2 1 . . Worker 44 | . 1 1 2 1 . 1 3 4 . . . . 7 . . 1 . . 9 1 . . . . 1 . . . . 5 4 . . 2 1 Builder 33 | . . . 2 2 . . 2 3 . . . . 1 . . 3 . . 4 . . . . . . . . . . 1 6 . . 2 7 Tunneler 8 | 3 1 . . 1 . . . . . . . . . . 1 . . . . . . . . . 1 . . . . . . . . . 1 Hauler 38 | . 2 . 4 . . . 6 6 . . . . 6 . . . . . 4 2 . . . . 1 . . . . 2 2 2 1 . . Recycler 24 | 1 . . . . . . 1 5 . . . . 5 . . . . . 2 . . . . . 2 . . . . 1 1 . . 1 5 Mechanic 5 | . . . . . . . . 1 . . . . 1 . . . . . 1 . . . . . . . . . . . . . . 1 1 Operator 13 | . . . 1 . . . 1 . . . . . 1 . . . . 9 . . . . . . . . . . . . . . 1 . . Turret 1 | . . . . . 1 . . . . . . . . . . . . . . . . . . . . . . . . . . . . . . Watcher 33 | . 2 . 1 . . . 5 6 . . . . 5 . . 1 . . . 1 . . . . . . . . . 4 3 1 . 2 2 Swarmer 93 | . . 2 8 7 . . 4 11 . . . . 5 . . 1 . . . 5 . . . . 8 3 1 . 4 14 . 1 1 13 5 Saboteur 5 | . . . . . . . . . . . . . . . . . . . . . . . . . . . 1 . . . . . . 1 3 Grunt 219 | . 13 2 15 . . 5 18 28 5 3 . 9 19 . . 2 . . 6 . . . . . 6 1 2 . . 16 22 7 2 9 29 Brawler 23 | . . . 1 . . 1 1 4 1 . . 1 4 . . 1 . . . . . . . . 1 . . . . 1 3 . . 1 3 Duelist 23 | . . . 3 . . . 1 3 . . . 2 3 . . . . . . . . . . . . . . . . 1 2 . . 4 4 Protector 7 | . . . . . . . 1 1 . . . . . . . . . . 1 . . . . . . . . . . 1 . . . 1 2 Researcher 2 | . . . . . . . . . . . . . . . . . . . . . . . . . . . . . . . 2 . . . . Sentry 52 | . . . 7 . . . 8 10 1 . . 2 6 . . . . . 2 . . . . . . 1 . . . 4 . 1 3 3 4 Demolisher 1 | . . . . . . . . . . . . . . . . . . . . . . . . . . . . . . 1 . . . . . Hunter 43 | . . . . . . . 2 2 . . . . 1 . . . . . . . . . . . 2 . 2 . . 6 10 2 . 2 14 Programmer 56 | . . . . . . . . 6 . . . . 8 . . . . . 1 2 . . . 1 3 . . . . 11 12 1 5 6 . Heavy 3 | . . . . . . . 1 . . . . . . . . . . . . . . . . . . . . . . 1 . . . 1 . Q-Series 6 | . . . . . . . . . . . . . . . . . . . . . . . . . . . . . . . . . 1 3 2 Behemoth 1 | . . . . . . . . . . . . . . . . . . . . . . . . . . . . 1 . . . . . . . Cetus Guard 2 | . . . . . . . . . . . . . . . . . 2 . . . . . . . . . . . . . . . . . . S7 Guard 2 | . . . . . . . . . . . . . . . . . . . . . . . . . . . . . . . . . . 2 . Enhanced Grunt 1 | . . . . . . . . . . . . . . . . . . . 1 . . . . . . . . . . . . . . . . Lightning 3 | . . . . . . . . . . . . . . . . . . . 3 . . . . . . . . . . . . . . . . Striker 3 | . . . . . . . . . . . . . . . . . . . . . . . . . . . . . . . . 3 . . . Executioner 2 | . . . . . . . . . . . . . . . . . . . . . . . . . . . . . . . . 2 . . . Zionite 8 | . . . . . 8 . . . . . . . . . . . . . . . . . . . . . . . . . . . . . . Packrat 1 | . . . . . . . . . 1 . . . . . . . . . . . . . . . . . . . . . . . . . . Master Thief 1 | . . . . . . . . . . 1 . . . . . . . . . . . . . . . . . . . . . . . . . Assembled 2 | . . . . . 2 . . . . . . . . . . . . . . . . . . . . . . . . . . . . . . Thug 1 | . . . . . . . . . . . . . . . . . 1 . . . . . . . . . . . . . . . . . . Martyr 3 | . . . . . . . . . . . . . . 3 . . . . . . . . . . . . . . . . . . . . . Best Kill Streak 17 | 4 3 3 6 4 4 3 6 8 7 3 . 7 7 . 1 3 2 2 11 5 . . . 1 10 5 2 1 3 8 10 4 3 10 17 Combat Bots Only 14 | . 3 2 4 4 1 3 4 8 7 3 . 7 5 . . 1 2 . 4 5 . . . 1 9 5 2 1 3 5 8 4 3 8 14 Max Kills in Single Turn 4 | 1 1 2 3 3 2 1 2 3 2 1 . 1 2 1 1 2 1 2 3 4 . . . 1 3 2 1 1 1 3 3 2 2 4 3 Gunslinging 1 | . . . 1 . . . 1 1 1 . . . . . . . . . . . . . . . . . . . . . 1 1 . . . Exploded 4 | . . 2 3 3 1 . . 3 2 1 . 1 2 . . . . . . 4 . . . . 3 2 . . . 2 1 1 1 4 2 Melee 1 | . . . . . 1 . . . . . . . 1 . . . . . . . . . . . . . . . . . . . . . 1 Uniques/NPCs Destroyed 4 | . . . . . 4 . . . . . . . . . . . . . . . . . . . . . . . . . . . . . . 8R-AWN (-9/Exiles) EX-HEX (-9/Exiles) EX-DEC (-9/Exiles) EX-BIN (-9/Exiles) Combat | -11 -10 -10 -9 -9 -9 -8 -8 -7 -7 -7 -7 -6 -6 -6 -6 -6 -6 -6 -6 -5 -5 -5 -5 -4 -4 -4 -4 -4 -3 -3 -3 -2 -2 -2 -1 -------- Run | Scr Mat Min Mat Min Exi Min Mat Fac Low Low Dat Pro Fac Was Fac Ext Cet Arc Hub Fac Upp Upp Zhi Pro Fac Upp Upp War Pro Res Tes Res Qua Sec Acc Damage Taken 55497 | . 368 153 854 81 945 344 2157 3286 404 162 . 1695 3609 . . 566 253 21 1472 218 . 79 . 8 1583 410 1638 230 249 6481 5365 1629 4038 5998 11201 Core 5268 | . 80 10 207 25 83 . 304 529 21 5 . 138 207 . . 70 10 . 108 1 . . . 2 84 25 259 . . 430 465 143 387 297 1378 Absorbed by Shields 4374 | . . . 36 52 280 . 436 . . . . . 578 . . . 66 . . . . . . . . . . 121 121 219 506 . 728 832 399 Reduced by Siege Mode 1165 | . . . . . . . . . . . . . . . . . . . 25 . . . . . . . . . . . . 117 288 535 200 Redirected to Core 335 | . . . . . . . . . . . . . . . . . . . . . . . . . . . . . . . . . 335 . . Redirected to Shielding 807 | . . . . . . . . . . . . . . . . . . . . . . . . . 181 39 124 . . 210 106 75 . 26 46 Regen/Repaired (Parts) 9337 | . . . 62 . . . . 1040 . . . . 498 . . 164 . . . . . . . . 310 . . . . 705 449 481 929 2966 1733 Core Remaining (%) 50 | 100 . 64 . . . 21 44 . . . . 1 . . . . . . 53 . . . . 99 . . . . 63 . 31 . . 33 . Volleys Fired 1719 | 7 53 12 79 13 62 23 108 160 10 12 . 42 108 22 6 13 15 70 82 18 2 . 1 5 53 9 24 14 9 163 159 56 62 99 148 Largest 3 | 2 2 2 3 3 3 3 3 3 3 3 . 3 3 2 3 3 3 3 3 3 3 . 3 3 3 3 3 3 3 3 3 3 3 3 2 Hottest 345 | 60 112 112 180 69 100 80 204 133 98 84 . 89 144 60 105 95 95 100 100 100 103 . 103 103 103 101 103 282 282 300 300 200 320 345 200 Shots Fired 3695 | 14 106 23 213 35 177 69 306 392 19 30 . 89 291 44 16 27 37 96 223 52 6 . 3 15 113 25 62 42 27 349 310 121 102 109 152 Gun 2595 | 14 106 22 135 33 173 69 145 332 16 27 . 82 134 44 10 14 34 96 193 34 4 . 2 10 81 24 60 42 27 247 246 86 25 14 14 Cannon 921 | . . . 73 . 3 . 159 26 . . . . 143 . 6 8 3 . 30 17 2 . 1 5 16 . 2 . . 92 64 35 51 88 97 Launcher 173 | . . 1 4 2 1 . 2 34 3 3 . 7 14 . . 5 . . . 1 . . . . 14 1 . . . 10 . . 26 7 38 Special 6 | . . . 1 . . . . . . . . . . . . . . . . . . . . . 2 . . . . . . . . . 3 Kinetic 2077 | 7 46 . 77 33 173 69 113 120 11 27 . 82 277 44 10 14 34 96 193 34 4 . 2 10 81 24 60 . . 92 205 86 25 14 14 Thermal 1343 | 7 60 22 132 . 3 . 191 238 5 . . . . . 6 8 3 . 30 17 2 . 1 5 16 . 2 42 27 221 72 35 51 88 59 Explosive 55 | . . 1 3 2 1 . 2 5 . . . 5 5 . . 5 . . . 1 . . . . 14 1 . . . 10 . . . . . Electromagnetic 148 | . . . 1 . . . . 29 3 3 . 2 9 . . . . . . . . . . . . . . . . . 30 . 26 7 38 Slashing 38 | . . . . . . . . . . . . . . . . . . . . . . . . . . . . . . . . . . . 38 Entropic 29 | . . . . . . . . . . . . . . . . . . . . . . . . . . . . . . 26 3 . . . . Robot Hit Streak 72 | 6 9 5 16 6 11 8 20 21 11 18 . 10 16 7 9 6 14 10 26 9 4 . 2 3 11 16 9 7 3 49 72 26 33 38 22 Robot Miss Streak 7 | 2 4 2 6 2 4 5 3 2 1 3 . 3 5 4 1 2 5 4 4 2 2 . . 1 4 2 1 4 3 5 4 2 2 1 7 Penetration Max 4 | . . . . . . . 1 . . 1 . 1 1 . . . 1 1 1 . . . . . 1 . . . . . 2 . 1 4 1 Secondary Targets 41 | . 2 . 1 . . . 1 6 2 . . 4 2 . . . 1 . 3 . . . . . 1 2 . 1 1 3 8 3 . . . Max Gunslinging Chain 1 | . 1 . 1 . . . 1 1 1 . . 1 1 . . . 1 . 1 . . . . . 1 1 . 1 1 1 1 1 . . . Shots Hit Robots 2510 | 9 67 14 118 23 112 45 203 271 15 19 . 60 227 30 12 12 25 62 165 35 3 . 1 8 73 19 24 19 14 257 232 91 60 69 116 Core Hits 1527 | 5 32 8 58 11 34 15 85 153 15 7 . 38 98 19 4 17 14 26 71 15 1 . 1 2 50 9 14 4 7 159 134 37 24 105 255 Critical Kills 46 | . . . . . . . 7 1 . . . 1 3 . . . . . 10 . . . . . . . 4 . . . 5 7 2 3 3 Critical Parts Destroyed 63 | . . . . . . 1 4 2 . . . 1 15 . . . 1 3 7 2 . . . 1 2 1 1 . . . 8 10 . 4 . Critical Strikes 171 | . 6 . 5 . . 1 12 18 . . . 2 26 . . . 1 3 18 2 . . . 1 2 2 5 . . 6 22 17 3 7 12 Burn 25 | . 6 . 5 . . . 1 13 . . . . . . . . . . . . . . . . . . . . . . . . . . . Meltdown 9 | . . . . . . . 3 . . . . . . . . . . . . . . . . . . . . . . . 1 2 2 1 . Destroy 85 | . . . . . . 1 8 3 . . . 2 . . . . 1 3 18 2 . . . 1 2 2 5 . . . 12 15 1 6 3 Blast 16 | . . . . . . . . 2 . . . . 8 . . . . . . . . . . . . . . . . 6 . . . . . Corrupt 9 | . . . . . . . . . . . . . . . . . . . . . . . . . . . . . . . 9 . . . . Smash 18 | . . . . . . . . . . . . . 18 . . . . . . . . . . . . . . . . . . . . . . Sever 9 | . . . . . . . . . . . . . . . . . . . . . . . . . . . . . . . . . . . 9 Melee Attacks 72 | . . . . . . . . 2 1 . . . 68 . . . . . . . . . . . . . . . . . . . . . 1 Thermal 1 | . . . . . . . . . . . . . . . . . . . . . . . . . . . . . . . . . . . 1 Impact 71 | . . . . . . . . 2 1 . . . 68 . . . . . . . . . . . . . . . . . . . . . . Slashing . | . . . . . . . . . . . . . . . . . . . . . . . . . . . . . . . . . . . . Piercing . | . . . . . . . . . . . . . . . . . . . . . . . . . . . . . . . . . . . . Sneak Attacks 15 | . . . . . . . . . . . . . 15 . . . . . . . . . . . . . . . . . . . . . . Combat Hostiles 2 | . . . . . . . . . . . . . 2 . . . . . . . . . . . . . . . . . . . . . . Follow-up Attacks . | . . . . . . . . . . . . . . . . . . . . . . . . . . . . . . . . . . . . Damage Inflicted 107978 | 101 795 350 2777 578 2061 777 4220 8411 736 648 . 1788 9116 915 313 916 816 1558 4910 1389 85 . 42 271 4301 721 523 553 435 12554 12727 3344 2827 10644 15776 Guns 43666 | 101 795 193 1305 316 1891 777 1730 4804 273 417 . 1280 2027 915 148 184 717 1558 3786 622 53 . . 193 1492 465 523 553 435 6059 7192 1882 372 316 292 Cannons 33466 | . . . 946 . . . 2349 289 . . . . 2622 . 165 226 99 . 770 427 32 . 42 78 250 . . . . 4701 4106 1334 1676 5402 7952 Explosions 27250 | . . 157 526 262 169 . 141 3318 458 231 . 508 1545 . . 500 . . 302 340 . . . . 2549 256 . . . 1418 1381 128 779 4906 7376 Melee 2922 | . . . . . . . . . . . . . 2922 . . . . . . . . . . . . . . . . . . . . . . Ramming 674 | . . . . . 1 . . . 5 . . . . . . 6 . . 52 . . . . . 10 . . . . 376 48 . . 20 156 Kinetic 36910 | 33 256 . 840 316 1891 777 1311 1438 177 417 . 1280 4649 915 148 184 717 1558 3786 622 53 . . 193 1492 465 523 . . 4701 5306 1882 372 316 292 Thermal 41277 | 68 539 193 1411 . 142 . 2768 3923 290 . . 188 47 . 165 226 99 . 770 427 32 . 42 78 250 . . 553 435 5144 5364 1462 2353 9091 5217 Explosive 8274 | . . 157 440 262 27 . 141 686 . . . 264 1027 . . 500 . . . 340 . . . . 2549 256 . . . 1418 . . . . 207 Electromagnetic 12209 | . . . 86 . . . . 2364 264 231 . 56 471 . . . . . 302 . . . . . . . . . . . 1822 . 102 1217 5294 Impact 2922 | . . . . . . . . . . . . . 2922 . . . . . . . . . . . . . . . . . . . . . . Slashing 4610 | . . . . . . . . . . . . . . . . . . . . . . . . . . . . . . . . . . . 4610 Piercing . | . . . . . . . . . . . . . . . . . . . . . . . . . . . . . . . . . . . . Entropic 1102 | . . . . . . . . . . . . . . . . . . . . . . . . . . . . . . 915 187 . . . . Highest Corruption 52 | . . . 1 1 . . . 9 9 9 9 9 2 . . . . 4 7 . . . . . . . . . . 14 52 2 5 4 15 Average Corruption 7 | . . . 1 1 . . . 2 9 9 9 9 1 . . . . 2 4 . . . . . . . . . . 5 25 1 2 2 10 Corruption Purged 13 | . . . . 1 . . . 2 . . . . 6 . . . . 4 . . . . . . . . . . . . . . . . . Corruption Blocked 82 | . . . . . . . . . . . . . . . . . . . . . . . . . . . . . . . 15 67 . . . Effects 414 | . . . 7 . . . . 53 19 14 5 30 14 . . . . 2 8 . . . . . . . . . . 42 140 11 10 15 44 Message Errors 91 | . . . . . . . . 13 5 1 1 7 4 . . . . . 1 . . . . . . . . . . 16 31 1 1 2 8 Matter Fused 97 | . . . 1 . . . . 12 6 4 1 10 3 . . . . . 1 . . . . . . . . . . 9 32 4 1 6 7 Heat Flow Errors 40 | . . . 1 . . . . 5 3 2 . 3 1 . . . . 1 2 . . . . . . . . . . . 11 3 3 . 5 Energy Discharges 36 | . . . 1 . . . . 6 2 2 . 1 2 . . . . 1 1 . . . . . . . . . . 3 7 2 2 . 6 Parts Rejected 6 | . . . . . . . . 1 . . . . . . . . . . . . . . . . . . . . . 2 1 . . . 2 Data Loss (minor) 52 | . . . 2 . . . . 4 1 3 3 4 2 . . . . . 1 . . . . . . . . . . 5 16 1 2 4 4 Data Loss (major) 25 | . . . . . . . . 3 1 2 . 3 . . . . . . 2 . . . . . . . . . . 1 10 . . . 3 Misfires 21 | . . . 1 . . . . 6 . . . . 1 . . . . . . . . . . . . . . . . 3 6 . 1 1 2 Alerts 10 | . . . . . . . . 2 1 . . 1 . . . . . . . . . . . . . . . . . . 3 . . 1 2 Misdirections 5 | . . . . . . . . . . . . . . . . . . . . . . . . . . . . . . 1 1 . . . 3 Weapon Failures 31 | . . . 1 . . . . 1 . . . 1 1 . . . . . . . . . . . . . . . . 2 22 . . 1 2 Overload Shots 7 | . . . . . . . . 6 . . . . . . 1 . . . . . . . . . . . . . . . . . . . . Overflow Damage 4801 | . . 10 32 5 . . 29 31 . . . 13 1343 . 15 44 . . 62 2 2 . . 30 64 11 . . . 613 804 32 302 940 417 Projectiles 2488 | . . . 4 . . . 29 10 . . . . 27 . 15 27 . . 62 2 2 . . 30 . . . . . 468 644 32 280 660 196 Explosions 967 | . . 10 28 5 . . . 21 . . . 13 96 . . 17 . . . . . . . . 64 11 . . . 19 160 . 22 280 221 Melee 1346 | . . . . . . . . . . . . . 1220 . . . . . . . . . . . . . . . . 126 . . . . . Knockbacks 60 | . . . . . . . . 4 . . . . 32 . . . . . . . . . . . . . . . . 23 . . . . 1 Impact 7 | . . . . . . . . . . . . . 4 . . . . . . . . . . . . . . . . 2 . . . . 1 Kinetic 47 | . . . . . . . . 4 . . . . 25 . . . . . . . . . . . . . . . . 18 . . . . . Secondary 6 | . . . . . . . . . . . . . 3 . . . . . . . . . . . . . . . . 3 . . . . . Self-Inflicted Damage 1177 | . . 5 32 . . . . 187 8 . . . 152 . . . . . 36 . . . . . 82 . . . . 60 79 . . 306 230 Shots 60 | . . 1 2 . . . . 9 2 . . . 7 . . . . . 3 . . . . . 2 . . . . 3 2 . . 12 17 Rammed 24 | . . . . . 1 . . . 1 . . . . . . 1 . . 4 . . . . . . . . . . . . . . 2 15 Targets Rammed 41 | . . . . . 2 . . . 1 . . . . . . 1 . . 4 . . . . . 2 . . . . 8 4 . . 2 17 Kicked 14 | . . . . . . . . . . . . . . . . . . . . . . . . . 2 . . . . 8 4 . . . . Crushed 3 | . . . . . 1 . . . . . . . . . . . . . . . . . . . . . . . . . . . . . 2 Highest Temperature 896 | . 165 249 306 76 365 333 509 553 342 268 . 300 506 4 162 117 229 318 534 144 54 . 27 110 107 51 40 265 216 333 710 210 259 348 896 Average Temperature 104 | . 50 99 86 30 154 111 134 81 137 89 . 113 128 2 69 33 66 121 120 52 28 . 14 64 37 26 9 92 73 65 114 57 74 103 190 Received Heat Transfer 7866 | . 210 69 300 . . 198 863 720 180 63 . 465 926 . . 48 39 . 396 . . 9 . . 222 78 268 55 . 482 483 54 439 278 1021 Effects 92 | . . . 2 . 8 3 7 9 6 1 . 2 15 . . . . 2 4 . . . . . . . . . . . 10 . . . 23 Shutdowns 20 | . . . . . 1 . 3 2 . . . . 4 . . . . . . . . . . . . . . . . . 3 . . . 7 Energy Bleed 19 | . . . 1 . 2 . 2 2 . 1 . . 3 . . . . . . . . . . . . . . . . . 3 . . . 5 Interference 31 | . . . 1 . 3 3 2 1 6 . . 2 . . . . . 2 2 . . . . . . . . . . . 3 . . . 6 Matter Decay 2 | . . . . . . . . . . . . . 1 . . . . . . . . . . . . . . . . . . . . . 1 Short Circuit 4 | . . . . . 1 . . . . . . . 2 . . . . . . . . . . . . . . . . . 1 . . . . Damage (minor) 8 | . . . . . 1 . . 1 . . . . 3 . . . . . 1 . . . . . . . . . . . . . . . 2 Damage (major) 3 | . . . . . . . . . . . . . 2 . . . . . . . . . . . . . . . . . . . . . 1 Damage (core) 5 | . . . . . . . . 3 . . . . . . . . . . 1 . . . . . . . . . . . . . . . 1 Siege Activations 33 | . . . . . . . . . . . . . . . 1 . 1 . 1 . . . . . . . . . . . . 5 5 11 9 Total Turns 743 | . . . . . . . . . . . . . . . 8 . 8 . 121 . . . . . . . . . . . . 99 124 226 157 Longest Duration 121 | . . . . . . . . . . . . . . . 8 . 8 . 121 . . . . . . . . . . . . 43 75 66 48 Robots Corrupted 41 | . . . . . . . . 7 . 1 . . 1 . . . . . . . . . . . . . . . . . 9 . . 4 19 Combat Hostiles 40 | . . . . . . . . 7 . 1 . . 1 . . . . . . . . . . . . . . . . . 8 . . 4 19 Parts Fried 115 | . . . . . . . . 12 . 2 . . 18 . . . . . . . . . . . . . . . . 1 21 . . 14 47 Impact Corruptions 37 | . . . . . . . . . . . . . 32 . . . . . . . . . . . . . . . . 4 . . . 1 . Robots Melted 16 | . 1 . . . . . 3 3 . . . . . . . . . . . . . . . . . . . . . 1 2 2 2 1 1 Combat Hostiles 13 | . . . . . . . 3 3 . . . . . . . . . . . . . . . . . . . . . 1 2 . 2 1 1 Parts Melted 114 | . 3 . 6 . . . 18 31 . . . . . . . 4 2 . 2 . . . . . . . . 3 3 13 11 4 5 7 2 Heat Transferred 47994 | 150 1756 481 2960 . 240 . 4764 7879 448 . . 200 100 . 250 325 150 . 1200 600 50 . 50 100 300 . . 629 555 7261 5405 1037 1616 6352 3136 Parts Sabotaged 3 | . . . . . . . . . . . . . . . . . . . . . . . . . . . . . . . . . . . 3 Parts Stolen 6 | . . . . . . . . . . 5 . . . . . . . . . . 1 . . . . . . . . . . . . . . Parts Stripped . | . . . . . . . . . . . . . . . . . . . . . . . . . . . . . . . . . . . . Power Chain Reactions 17 | . . . . . . . . 3 3 . . 1 3 . . . . . 1 . . . . . . . . . . . . . . 2 4 Missiles Intercepted . | . . . . . . . . . . . . . . . . . . . . . . . . . . . . . . . . . . . . Alert | -11 -10 -10 -9 -9 -9 -8 -8 -7 -7 -7 -7 -6 -6 -6 -6 -6 -6 -6 -6 -5 -5 -5 -5 -4 -4 -4 -4 -4 -3 -3 -3 -2 -2 -2 -1 ------- Run | Scr Mat Min Mat Min Exi Min Mat Fac Low Low Dat Pro Fac Was Fac Ext Cet Arc Hub Fac Upp Upp Zhi Pro Fac Upp Upp War Pro Res Tes Res Qua Sec Acc Peak Influence 3126 | 20 232 224 741 378 . 125 785 1401 . . . . 1215 419 579 526 961 532 1167 897 . . . . 522 . . . . 1182 1561 1199 901 1729 3126 Initial 1100 | . 13 34 9 285 . . . 210 . . . . . 419 48 219 247 316 . 571 . . . . . . . . . 160 664 861 627 271 1100 Average 446 | 8 85 109 474 269 . 50 397 525 . . . . 528 308 305 236 696 36 524 774 . . . . 185 . . . . 633 899 978 579 989 1886 Maximum Alert Level 5 | . 1 1 3 1 . . 3 4 . . . . 4 2 2 2 3 2 4 3 . . . . 2 . . . . 4 4 4 3 5 5 Low Security (%) 41 | 100 95 66 15 38 . 100 19 33 . . . . 32 3 32 44 . 90 23 . . . . . 52 . . . . 4 . . . . . Level 1 12 | . 4 33 10 61 . . 20 13 . . . . 13 48 22 38 5 7 14 . . . . . 38 . . . . 8 . . . 15 . Level 2 18 | . . . 59 . . . 53 11 . . . . 11 48 45 17 47 2 30 15 . . . . 9 . . . . 53 21 . 89 13 . Level 3 19 | . . . 15 . . . 5 34 . . . . 38 . . . 46 . 25 84 . . . . . . . . . 31 56 70 10 32 . Level 4 5 | . . . . . . . . 7 . . . . 3 . . . . . 7 . . . . . . . . . . 2 21 29 . 18 39 Level 5 1 | . . . . . . . . . . . . . . . . . . . . . . . . . . . . . . . . . . 13 20 High Security 1 | . . . . . . . . . . . . . . . . . . . . . . . . . . . . . . . . . . 5 39 Max Security . | . . . . . . . . . . . . . . . . . . . . . . . . . . . . . . . . . . . . Squads Dispatched 155 | . 3 . 4 . . . 5 24 . . . 1 18 . 3 2 . . 8 2 . . . . 2 . 1 . . 11 16 . 8 12 35 Investigation 17 | . 2 . 1 . . . 1 5 . . . . 3 . 1 1 . . 1 . . . . . . . . . . 1 . . . . 1 Extermination 32 | . . . . . . . . 7 . . . . 5 . 1 . . . 3 . . . . . 1 . . . . 3 4 . 3 4 1 Reinforcement 41 | . 1 . 2 . . . 3 4 . . . . 4 . . 1 . . 1 1 . . . . 1 . . . . 3 7 . 4 3 6 Assault 57 | . . . 1 . . . 1 4 . . . 1 6 . 1 . . . 3 1 . . . . . . 1 . . 3 5 . 1 5 24 Garrison 8 | . . . . . . . . 4 . . . . . . . . . . . . . . . . . . . . . 1 . . . . 3 Intercept . | . . . . . . . . . . . . . . . . . . . . . . . . . . . . . . . . . . . . Searches Triggered . | . . . . . . . . . . . . . . . . . . . . . . . . . . . . . . . . . . . . Data Miner Redirects 19 | . . . . . . . . . . . . . 4 . 1 1 . . 2 . . . . . . . . . . 4 1 . 1 2 3 Construction Impeded 16 | . . . . . . . 2 1 . . . . 2 . . 1 . . . . . . . . . . . . . . 4 . 1 1 4 Haulers Reinforced 5 | . . . . . . . . 1 . . . . 1 . . . . . . . . . . . . . . . . 1 1 . 1 . . Active Scanning Responses . | . . . . . . . . . . . . . . . . . . . . . . . . . . . . . . . . . . . . Cargo Convoy Interrupts 1 | . . . . . . . . . . . . . . . . . . . . . . . . . 1 . . . . . . . . . . Stealth | -11 -10 -10 -9 -9 -9 -8 -8 -7 -7 -7 -7 -6 -6 -6 -6 -6 -6 -6 -6 -5 -5 -5 -5 -4 -4 -4 -4 -4 -3 -3 -3 -2 -2 -2 -1 --------- Run | Scr Mat Min Mat Min Exi Min Mat Fac Low Low Dat Pro Fac Was Fac Ext Cet Arc Hub Fac Upp Upp Zhi Pro Fac Upp Upp War Pro Res Tes Res Qua Sec Acc Distress Signals 38 | . 2 . 7 . . . 2 2 . . . . . . . 2 2 . 1 . . . . . 1 . . . . 3 1 6 1 1 7 Communications Jammed 2 | . . . . . . . . . . . . . . . . . . . . . . . . . . . . . . . . . . 2 . Distress Signals . | . . . . . . . . . . . . . . . . . . . . . . . . . . . . . . . . . . . . Times Spotted 1043 | . 21 5 54 8 21 6 54 84 7 8 . 21 79 . 8 22 27 26 40 15 2 3 . 1 39 10 29 14 10 73 72 29 21 69 165 Peak Tracking Total 34 | . 3 3 9 4 9 3 6 7 5 5 . 7 6 . 3 4 7 1 9 5 1 3 . 1 11 6 12 8 5 7 9 6 4 15 34 Tactical Retreats 59 | . 1 . . . 10 . 1 5 . . . . 8 . . . . . 2 . . . . . 2 . 8 . . 6 1 1 1 1 12 Traps | -11 -10 -10 -9 -9 -9 -8 -8 -7 -7 -7 -7 -6 -6 -6 -6 -6 -6 -6 -6 -5 -5 -5 -5 -4 -4 -4 -4 -4 -3 -3 -3 -2 -2 -2 -1 ------- Run | Scr Mat Min Mat Min Exi Min Mat Fac Low Low Dat Pro Fac Was Fac Ext Cet Arc Hub Fac Upp Upp Zhi Pro Fac Upp Upp War Pro Res Tes Res Qua Sec Acc Traps Triggered 33 | . 1 . 3 . . . . 1 . . . . 6 . . 2 . . . 1 . . . . . . . . . 1 2 . 1 . 15 Indirectly 14 | . . . . . . . . . . . . . 1 . . . . . . . . . . . . . . . . . . . . . 13 Trap Hack Attempts . | . . . . . . . . . . . . . . . . . . . . . . . . . . . . . . . . . . . . Triggered . | . . . . . . . . . . . . . . . . . . . . . . . . . . . . . . . . . . . . Disarmed . | . . . . . . . . . . . . . . . . . . . . . . . . . . . . . . . . . . . . Reprogrammed . | . . . . . . . . . . . . . . . . . . . . . . . . . . . . . . . . . . . . Reused . | . . . . . . . . . . . . . . . . . . . . . . . . . . . . . . . . . . . . Traps Extracted . | . . . . . . . . . . . . . . . . . . . . . . . . . . . . . . . . . . . . Installed . | . . . . . . . . . . . . . . . . . . . . . . . . . . . . . . . . . . . . Triggered 8 | . . . . . . . . . . . . . . . . . . . . . . . . 1 . . 2 4 1 . . . . . . Exploded 3 | . . . . . 3 . . . . . . . . . . . . . . . . . . . . . . . . . . . . . . Machines | -11 -10 -10 -9 -9 -9 -8 -8 -7 -7 -7 -7 -6 -6 -6 -6 -6 -6 -6 -6 -5 -5 -5 -5 -4 -4 -4 -4 -4 -3 -3 -3 -2 -2 -2 -1 ---------- Run | Scr Mat Min Mat Min Exi Min Mat Fac Low Low Dat Pro Fac Was Fac Ext Cet Arc Hub Fac Upp Upp Zhi Pro Fac Upp Upp War Pro Res Tes Res Qua Sec Acc Machines Disabled 90 | . . 2 3 . 6 . 6 10 . . . . 5 . 1 3 1 3 13 2 . . . . 5 . . . . 2 6 3 7 9 3 Max in Single Turn 5 | . . 1 1 . 1 . 1 4 . . . . 2 . 1 1 1 2 5 1 . . . . 2 . . . . 1 1 1 1 2 1 Garrison Access 12 | . . . . . . . 1 3 . . . . 3 . 1 . . . . . . . . . . . . . . 1 1 2 . . . Network Hub 2 | . . . . . . . . . . . . . . . . . . . 2 . . . . . . . . . . . . . . . . Energy Cycler 1 | . . . . . . . . . . . . . . . . 1 . . . . . . . . . . . . . . . . . . . Machines Sabotaged . | . . . . . . . . . . . . . . . . . . . . . . . . . . . . . . . . . . . . Garrisons Compromised . | . . . . . . . . . . . . . . . . . . . . . . . . . . . . . . . . . . . . Overloaded Fab Kills . | . . . . . . . . . . . . . . . . . . . . . . . . . . . . . . . . . . . . Hacking | -11 -10 -10 -9 -9 -9 -8 -8 -7 -7 -7 -7 -6 -6 -6 -6 -6 -6 -6 -6 -5 -5 -5 -5 -4 -4 -4 -4 -4 -3 -3 -3 -2 -2 -2 -1 --------- Run | Scr Mat Min Mat Min Exi Min Mat Fac Low Low Dat Pro Fac Was Fac Ext Cet Arc Hub Fac Upp Upp Zhi Pro Fac Upp Upp War Pro Res Tes Res Qua Sec Acc Machines Accessed 150 | . 9 . 6 1 2 . 12 29 1 . 4 . 23 . 6 5 1 . 3 1 1 . 4 . 4 . 1 4 . 8 9 . 5 6 5 Terminals 88 | . 7 . 5 . . . 12 15 . . . . 13 . 3 4 1 . 3 . . . . . 2 . . . . 5 5 . 5 4 4 Fabricators 14 | . . . . . . . . 5 . . . . 4 . 1 . . . . 1 . . . . . . . . . 1 2 . . . . Repair Stations 17 | . . . 1 . . . . 3 . . . . 3 . 1 1 . . . . . . . . 2 . . . . 2 1 . . 2 1 Recycling Units 3 | . 2 . . . . . . 1 . . . . . . . . . . . . . . . . . . . . . . . . . . . Scanalyzers 1 | . . . . . . . . 1 . . . . . . . . . . . . . . . . . . . . . . . . . . . Garrison Access 9 | . . . . . . . . 4 . . . . 3 . 1 . . . . . . . . . . . . . . . 1 . . . . Total Hacks 519 | . 25 . 16 1 2 . 44 93 1 . 21 . 63 . 11 13 1 . 8 2 1 . 17 . 29 . 1 9 . 42 45 . 30 29 15 Successful 267 | . 15 . 11 1 2 . 27 52 1 . 21 . 29 . 4 5 1 . 3 1 1 . 17 . 12 . 1 9 . 19 15 . 10 9 1 Failed 251 | . 9 . 5 . . . 17 41 . . . . 34 . 7 8 . . 5 1 . . . . 17 . . . . 23 30 . 20 20 14 Catastrophic 54 | . 1 . 1 . . . 2 6 . . . . 6 . 3 2 . . 1 1 . . . . 2 . . . . 6 9 . 3 5 6 Database Lockouts 1 | . 1 . . . . . . . . . . . . . . . . . . . . . . . . . . . . . . . . . . Manual 176 | . 15 . 12 . 1 . 24 31 . . . . 18 . 3 9 1 . 4 2 . . . . 11 . . 1 . 9 16 . 11 8 . Terminals 316 | . 22 . 13 . . . 44 48 . . . . 34 . 4 11 1 . 8 . . . . . 18 . . . . 18 31 . 30 21 13 Fabricators 33 | . . . . . . . . 13 . . . . 11 . 1 . . . . 2 . . . . . . . . . 2 4 . . . . Repair Stations 82 | . . . 3 . . . . 12 . . . . 12 . 2 2 . . . . . . . . 11 . . . . 22 8 . . 8 2 Recycling Units 5 | . 3 . . . . . . 2 . . . . . . . . . . . . . . . . . . . . . . . . . . . Scanalyzers 11 | . . . . . . . . 11 . . . . . . . . . . . . . . . . . . . . . . . . . . . Garrison Access 19 | . . . . . . . . 7 . . . . 6 . 4 . . . . . . . . . . . . . . . 2 . . . . Terminal Hacks 152 | . 10 . 4 1 2 . 21 20 1 . 21 . 9 . 1 2 1 . 2 . 1 . 17 . 2 . 1 9 . 7 7 . 7 5 1 Record 18 | . . . . . 1 . . . . . 3 . . . . . . . . . . . 5 . . . . 8 . . . . . 1 . Part Schematic 16 | . . . . . . . 1 . . . 10 . 1 . . . . . . . . . 4 . . . . . . . . . . . . Robot Schematic 5 | . . . . . . . . . . . 5 . . . . . . . . . . . . . . . . . . . . . . . . Robot Analysis 17 | . 3 . 1 . . . 4 3 . . . . 1 . . . . . . . . . 4 . 1 . . . . . . . . . . Prototype ID Bank 29 | . . . 1 . . . 5 6 . . 3 . 3 . . 1 . . . . . . 4 . . . . . . 1 2 . 1 1 1 Open Door 7 | . . . . 1 . . . . 1 . . . . . . . 1 . . . 1 . . . . . 1 1 . . 1 . . . . Branch Access Points 4 | . . . . . . . . 1 . . . . . . 1 . . . . . . . . . 1 . . . . 1 . . . . . Machine Index 1 | . . . . . . . . . . . . . . . . . . . . . . . . . . . . . . . . . . 1 . Terminal Index 9 | . 1 . 1 . . . 2 1 . . . . 1 . . . . . . . . . . . . . . . . 1 1 . 1 . . Fabricator Index 2 | . . . . . . . . 1 . . . . 1 . . . . . . . . . . . . . . . . . . . . . . Repair Station Index 1 | . . . . . . . . . . . . . 1 . . . . . . . . . . . . . . . . . . . . . . Garrison Index 1 | . . . . . . . . . . . . . . . . . . . . . . . . . . . . . . . 1 . . . . Alert Level 4 | . . . . . . . 2 1 . . . . . . . . . . . . . . . . . . . . . . . . 1 . . Unreport Threat 16 | . 1 . . . . . 3 3 . . . . 1 . . 1 . . 1 . . . . . . . . . . 2 1 . 2 1 . Locate Traps 10 | . 2 . 1 . . . 3 3 . . . . . . . . . . . . . . . . . . . . . . . . . 1 . Recall Investigation 2 | . 1 . . . . . . . . . . . . . . . . . . . . . . . . . . . . 1 . . . . . Recall Assault 1 | . . . . . . . . 1 . . . . . . . . . . . . . . . . . . . . . . . . . . . Hauler Manifests 2 | . 1 . . . . . 1 . . . . . . . . . . . . . . . . . . . . . . . . . . . . Zone Layout 6 | . 1 . . . . . . . . . . . . . . . . . 1 . . . . . . . . . . 1 1 . 2 . . EX-Prototype ID Bank 1 | . . . . . 1 . . . . . . . . . . . . . . . . . . . . . . . . . . . . . . Fabricator Hacks 4 | . . . . . . . . 2 . . . . 2 . . . . . . . . . . . . . . . . . . . . . . Load Schematic 2 | . . . . . . . . 1 . . . . 1 . . . . . . . . . . . . . . . . . . . . . . Build 2 | . . . . . . . . 1 . . . . 1 . . . . . . . . . . . . . . . . . . . . . . Repair Station Hacks 49 | . . . 2 . . . . 10 . . . . 8 . 1 2 . . . . . . . . 7 . . . . 10 5 . . 4 . Scan Component 29 | . . . 1 . . . . 5 . . . . 4 . 1 1 . . . . . . . . 4 . . . . 7 3 . . 3 . Repair 20 | . . . 1 . . . . 5 . . . . 4 . . 1 . . . . . . . . 3 . . . . 3 2 . . 1 . Recycling Unit Hacks . | . . . . . . . . . . . . . . . . . . . . . . . . . . . . . . . . . . . . Scanalyzer 7 | . . . . . . . . 7 . . . . . . . . . . . . . . . . . . . . . . . . . . . Insert Component 4 | . . . . . . . . 4 . . . . . . . . . . . . . . . . . . . . . . . . . . . Analyze 3 | . . . . . . . . 3 . . . . . . . . . . . . . . . . . . . . . . . . . . . Garrison Access Hacks 6 | . . . . . . . . 3 . . . . 2 . . . . . . . . . . . . . . . . . 1 . . . . Seal Access 6 | . . . . . . . . 3 . . . . 2 . . . . . . . . . . . . . . . . . 1 . . . . Unauthorized Hacks 49 | . 5 . 5 . . . 6 10 . . . . 8 . 2 1 . . 1 1 . . . . 3 . . . . 2 2 . 3 . . Terminals 38 | . 3 . 5 . . . 6 5 . . . . 6 . 1 1 . . 1 . . . . . 3 . . . . 2 2 . 3 . . Track 3 | . . . . . . . 1 1 . . . . 1 . . . . . . . . . . . . . . . . . . . . . . Assimilate 3 | . . . 2 . . . . . . . . . 1 . . . . . . . . . . . . . . . . . . . . . . Botnet 20 | . 2 . 1 . . . 3 4 . . . . 3 . 1 1 . . 1 . . . . . 1 . . . . 1 1 . 1 . . Disrupt 5 | . . . 1 . . . 1 . . . . . . . . . . . . . . . . . 1 . . . . 1 . . 1 . . Operators 7 | . 1 . 1 . . . 1 . . . . . 1 . . . . . . . . . . . 1 . . . . . 1 . 1 . . Fabricators 7 | . . . . . . . . 3 . . . . 2 . 1 . . . . 1 . . . . . . . . . . . . . . . Liberate 1 | . . . . . . . . 1 . . . . . . . . . . . . . . . . . . . . . . . . . . . Fabnet 6 | . . . . . . . . 2 . . . . 2 . 1 . . . . 1 . . . . . . . . . . . . . . . Repair Stations . | . . . . . . . . . . . . . . . . . . . . . . . . . . . . . . . . . . . . Recycling Units 4 | . 2 . . . . . . 2 . . . . . . . . . . . . . . . . . . . . . . . . . . . Reject 1 | . . . . . . . . 1 . . . . . . . . . . . . . . . . . . . . . . . . . . . Mask 1 | . . . . . . . . 1 . . . . . . . . . . . . . . . . . . . . . . . . . . . Tunnel 2 | . 2 . . . . . . . . . . . . . . . . . . . . . . . . . . . . . . . . . . Scanalyzers . | . . . . . . . . . . . . . . . . . . . . . . . . . . . . . . . . . . . . Garrison Access . | . . . . . . . . . . . . . . . . . . . . . . . . . . . . . . . . . . . . Data Cores Recovered 1 | . . . . . . . 1 . . . . . . . . . . . . . . . . . . . . . . . . . . . . Used 1 | . . . . . . . 1 . . . . . . . . . . . . . . . . . . . . . . . . . . . . Hacking Detections 117 | . 5 . 4 . . . 12 27 . . . . 21 . 6 4 . . 3 1 . . . . 3 . . . . 8 7 . 5 6 5 Full Trace Events 13 | . . . 1 . . . 1 5 . . . . 2 . 1 . . . 1 . . . . . . . . . . 1 . . . . 1 Feedback Events . | . . . . . . . . . . . . . . . . . . . . . . . . . . . . . . . . . . . . Feedback Blocked . | . . . . . . . . . . . . . . . . . . . . . . . . . . . . . . . . . . . . Robot Schematics Acquired 6 | . . . . . . . . . . . 5 . . . . . . . . . . . . . . . . . . . 1 . . . . Robots Built . | . . . . . . . . . . . . . . . . . . . . . . . . . . . . . . . . . . . . Authchips . | . . . . . . . . . . . . . . . . . . . . . . . . . . . . . . . . . . . . Time . | . . . . . . . . . . . . . . . . . . . . . . . . . . . . . . . . . . . . Total Robot Build Rating . | . . . . . . . . . . . . . . . . . . . . . . . . . . . . . . . . . . . . Part Schematics Acquired 28 | . . . . . . . 1 3 . . 10 . 1 . . . . . . . . . 4 . . . . . . . 9 . . . . Parts Built 2 | . . . . . . . . 1 . . . . 1 . . . . . . . . . . . . . . . . . . . . . . Authchips . | . . . . . . . . . . . . . . . . . . . . . . . . . . . . . . . . . . . . Time 190 | . . . . . . . . 84 . . . . 106 . . . . . . . . . . . . . . . . . . . . . . Total Part Build Rating 10 | . . . . . . . . 4 . . . . 6 . . . . . . . . . . . . . . . . . . . . . . Parts Repaired 20 | . . . 1 . . . . 5 . . . . 4 . . 1 . . . . . . . . 3 . . . . 3 2 . . 1 . Time 955 | . . . 26 . . . . 202 . . . . 88 . . 56 . . . . . . . . 275 . . . . 180 77 . . 51 . Parts Recycled . | . . . . . . . . . . . . . . . . . . . . . . . . . . . . . . . . . . . . Recycled Matter . | . . . . . . . . . . . . . . . . . . . . . . . . . . . . . . . . . . . . Retrieved Matter . | . . . . . . . . . . . . . . . . . . . . . . . . . . . . . . . . . . . . Retrieved Components . | . . . . . . . . . . . . . . . . . . . . . . . . . . . . . . . . . . . . Parts Scanalyzed 3 | . . . . . . . . 3 . . . . . . . . . . . . . . . . . . . . . . . . . . . Part Schematics Acquired 3 | . . . . . . . . 3 . . . . . . . . . . . . . . . . . . . . . . . . . . . Parts Damaged . | . . . . . . . . . . . . . . . . . . . . . . . . . . . . . . . . . . . . Bothacking | -11 -10 -10 -9 -9 -9 -8 -8 -7 -7 -7 -7 -6 -6 -6 -6 -6 -6 -6 -6 -5 -5 -5 -5 -4 -4 -4 -4 -4 -3 -3 -3 -2 -2 -2 -1 ------------ Run | Scr Mat Min Mat Min Exi Min Mat Fac Low Low Dat Pro Fac Was Fac Ext Cet Arc Hub Fac Upp Upp Zhi Pro Fac Upp Upp War Pro Res Tes Res Qua Sec Acc Used RIF Installer . | . . . . . . . . . . . . . . . . . . . . . . . . . . . . . . . . . . . . Robots Hacked 20 | . . . . . . . . . . . . . 3 . . 3 1 . 1 3 . . . . 4 . 1 4 . . . . . . . Non-combat . | . . . . . . . . . . . . . . . . . . . . . . . . . . . . . . . . . . . . Combat 20 | . . . . . . . . . . . . . 3 . . 3 1 . 1 3 . . . . 4 . 1 4 . . . . . . . Robot Hacks Applied . | . . . . . . . . . . . . . . . . . . . . . . . . . . . . . . . . . . . . Relay Couplers Released 15 | . . . . . . . 2 . . . . . 6 . . . . . . . . . . . . . . . . 2 3 2 . . . Machine Destruction 11 | . . . . . . . 2 . . . . . 2 . . . . . . . . . . . . . . . . 2 3 2 . . . Programmers 4 | . . . . . . . . . . . . . 4 . . . . . . . . . . . . . . . . . . . . . . Fabnet Peak Effective % 11 | . . . . . . . . . . . . 6 6 6 6 6 6 6 6 11 11 11 11 6 6 6 6 6 1 1 1 . . . . Autooverrided 20 | . . . . . . . . . . . . . 3 . . 3 1 . 1 3 . . . . 4 . 1 4 . . . . . . . Robots Rewired 20 | . . . . . . . . . . . . 2 . . . 13 . . . . . . . . . . . 5 . . . . . . . Allies Hacked 2 | . . . . . . . . . . . . . . . . . . . 2 . . . . . . . . . . . . . . . . Hacks Repelled . | . . . . . . . . . . . . . . . . . . . . . . . . . . . . . . . . . . . . Allies | -11 -10 -10 -9 -9 -9 -8 -8 -7 -7 -7 -7 -6 -6 -6 -6 -6 -6 -6 -6 -5 -5 -5 -5 -4 -4 -4 -4 -4 -3 -3 -3 -2 -2 -2 -1 -------- Run | Scr Mat Min Mat Min Exi Min Mat Fac Low Low Dat Pro Fac Was Fac Ext Cet Arc Hub Fac Upp Upp Zhi Pro Fac Upp Upp War Pro Res Tes Res Qua Sec Acc Total Allies 108 | . . 3 1 . . . . 5 . . . 3 3 20 . 20 6 . 2 3 . . . . 6 . 1 9 . . . . . . 26 Largest Group 24 | . . 3 3 1 1 1 . 3 . . . 2 1 20 17 24 22 11 8 1 . . . . 3 . 1 6 3 2 . . . . 15 Highest-Rated Group 982 | . . 40 40 10 10 10 . 48 . . . 125 32 810 660 982 891 817 569 85 . . . . 166 . 47 400 170 114 . . . . 333 Highest-Rated Ally 219 | . . 16 16 10 10 10 . 21 . . . 96 32 50 46 159 159 159 96 85 . . . . 100 . 47 116 65 65 . . . . 219 Total Orders 15 | . . . . . 1 1 . . . . . . . . . . . 3 1 . . . . . 1 . . 6 . . . 2 . . . STAY 8 | . . . . . 1 1 . . . . . . . . . . . 2 1 . . . . . . . . 3 . . . . . . . FOLLOW 4 | . . . . . . . . . . . . . . . . . . 1 . . . . . . . . . 3 . . . . . . . DROP 1 | . . . . . . . . . . . . . . . . . . . . . . . . . 1 . . . . . . . . . . EXPLORE 2 | . . . . . . . . . . . . . . . . . . . . . . . . . . . . . . . . 2 . . . Ally Attacks 682 | . . 5 6 . . . . 6 . . . 37 6 . 52 130 194 20 83 . . . . . 7 . 2 39 12 3 . . . . 80 Total Damage 21158 | . . 47 54 . . . . 94 . . . 1139 152 . 877 2847 4859 585 3581 . . . . . 565 . 17 1969 503 124 . . . . 3745 Kills 118 | . . 1 1 . . . . . . . . 5 1 . 9 21 28 5 25 . . . . . 4 . . 3 5 . . . . . 10 Allies Corrupted 4 | . . . . . . . . . . . . . . . . 2 1 . 1 . . . . . . . . . . . . . . . . Allies Melted 3 | . . . . . . . . . . . . . . . . . . . . . . . . . . . . 1 1 . . 1 . . . Field Lobotomies 5 | . . . . . . . . . . . . . . . . . . . . . . . . . 2 . . . . . . . . . 3 Intel | -11 -10 -10 -9 -9 -9 -8 -8 -7 -7 -7 -7 -6 -6 -6 -6 -6 -6 -6 -6 -5 -5 -5 -5 -4 -4 -4 -4 -4 -3 -3 -3 -2 -2 -2 -1 ------- Run | Scr Mat Min Mat Min Exi Min Mat Fac Low Low Dat Pro Fac Was Fac Ext Cet Arc Hub Fac Upp Upp Zhi Pro Fac Upp Upp War Pro Res Tes Res Qua Sec Acc Robot Analysis Total 17 | . 3 . 1 . . . 4 3 . . . . 1 . . . . . . . . . 4 . 1 . . . . . . . . . . Derelict Logs Recovered 12 | . . . . 2 . . . . 2 . . 3 . . . . . . . . . 1 . 2 . 2 . . . . . . . . . Drone Launches 2 | . . . . . . . . . . . . . . . . . . . . . . . . . . . . . . . . 2 . . . Drone Recoveries . | . . . . . . . . . . . . . . . . . . . . . . . . . . . . . . . . . . . . Exploration | -11 -10 -10 -9 -9 -9 -8 -8 -7 -7 -7 -7 -6 -6 -6 -6 -6 -6 -6 -6 -5 -5 -5 -5 -4 -4 -4 -4 -4 -3 -3 -3 -2 -2 -2 -1 ------------- Run | Scr Mat Min Mat Min Exi Min Mat Fac Low Low Dat Pro Fac Was Fac Ext Cet Arc Hub Fac Upp Upp Zhi Pro Fac Upp Upp War Pro Res Tes Res Qua Sec Acc Turns Passed 57536 | 90 1152 630 1427 911 4344 571 2611 5246 587 384 154 827 4428 833 582 1702 876 12059 1500 404 403 212 188 404 910 369 1955 847 298 2101 2502 1748 1316 1424 1541 Spaces Moved 24671 | 63 647 492 695 538 2260 326 1313 2596 322 212 93 421 2496 551 303 817 323 827 546 295 369 201 164 366 474 316 423 675 248 1182 1203 905 553 602 854 Core 768 | 7 . . . . . . . . . . . . . . . . . 407 . . . . . . . . . . . . . . . . 354 Treads 3580 | . 45 . . . 898 . . . . . . . . . . . 7 . 205 . . . . . . . . . . . . 770 553 602 500 Legs 6051 | . . . . . . . . . . . . . . . . . . . . 295 369 201 164 366 474 316 423 675 248 1182 1203 135 . . . Wheels 14272 | 56 602 492 695 538 1362 326 1313 2596 322 212 93 421 2496 551 303 817 316 420 341 . . . . . . . . . . . . . . . . Hover . | . . . . . . . . . . . . . . . . . . . . . . . . . . . . . . . . . . . . Flight . | . . . . . . . . . . . . . . . . . . . . . . . . . . . . . . . . . . . . Fastest Speed 50 | 50 90 120 120 150 105 150 145 145 160 160 160 160 115 115 175 160 160 160 130 106 106 106 106 106 106 106 106 103 103 103 114 117 148 146 50 Average Speed 185 | 85 128 120 145 150 170 150 160 159 160 160 160 160 129 125 175 174 176 1416 192 106 106 106 106 106 106 106 106 105 103 112 147 152 149 151 113 Slowest Speed 2700 | 95 240 120 210 150 330 150 165 160 175 160 160 160 130 175 175 175 240 2700 240 106 106 106 106 106 106 106 106 106 103 185 190 225 150 237 238 Overloaded Moves . | . . . . . . . . . . . . . . . . . . . . . . . . . . . . . . . . . . . . Propulsion Burnouts . | . . . . . . . . . . . . . . . . . . . . . . . . . . . . . . . . . . . . Robots Hopped . | . . . . . . . . . . . . . . . . . . . . . . . . . . . . . . . . . . . . Cave-ins Triggered . | . . . . . . . . . . . . . . . . . . . . . . . . . . . . . . . . . . . . Teleports 4 | . . . . . . . . . . . . . . . . . . . . . . . . . . . 1 . . . . . 1 . 2 Exploration Rate (%) 59 | 4 92 99 67 97 90 54 96 70 55 37 69 58 59 86 12 87 73 98 38 16 64 41 60 59 12 59 67 67 49 39 82 44 74 39 31 Regions Visited 35 Branch Regions 23 Pre-discovered Areas 10 | . 2 1 . . 1 . . . . . 1 1 . . . . . . . . . . 3 1 . . . . . . . . . . . Known Exits Taken 10 | . . . . . . . . 1 . . . 1 . . 1 . . . 1 1 . . . . 1 . . . 1 1 . 1 . 1 . Unknown Exits Taken 23 | 1 1 1 1 1 1 1 1 . 1 1 1 . . . . 1 1 1 . . 1 1 1 1 . 1 1 1 . . 1 . 1 . . Scrap Searched 20 | . . 1 . 3 . 2 . . 2 1 . 3 . . . . . . . . 2 . . 4 . 2 . . . . . . . . . Spaces Dug 146 | . . . 1 . . . . 2 . . . 7 18 . . . . . 1 . . . . . 2 . 14 8 . 7 56 5 6 15 4 Terrain Destroyed 1476 | . . 8 32 15 6 2 14 42 15 2 . 25 101 . . 6 . 3 367 20 2 . . 5 71 14 27 12 10 72 164 24 61 220 136 Melee 20 | . . . . . . . . 2 . . . . 18 . . . . . . . . . . . . . . . . . . . . . . Projectile 372 | . . . 10 . . 2 10 6 . 2 . 1 36 . . . . 3 40 11 2 . . 5 18 5 27 12 10 32 54 14 18 27 27 AOE 1078 | . . 8 22 15 6 . 4 34 15 . . 24 47 . . 6 . . 327 9 . . . . 53 9 . . . 40 110 9 43 193 104 Terrain Rammed . | . . . . . . . . . . . . . . . . . . . . . . . . . . . . . . . . . . . . Walls Destroyed . | . . . . . . . . . . . . . . . . . . . . . . . . . . . . . . . . . . . . Machines Disabled . | . . . . . . . . . . . . . . . . . . . . . . . . . . . . . . . . . . . . Actions | -11 -10 -10 -9 -9 -9 -8 -8 -7 -7 -7 -7 -6 -6 -6 -6 -6 -6 -6 -6 -5 -5 -5 -5 -4 -4 -4 -4 -4 -3 -3 -3 -2 -2 -2 -1 --------- Run | Scr Mat Min Mat Min Exi Min Mat Fac Low Low Dat Pro Fac Was Fac Ext Cet Arc Hub Fac Upp Upp Zhi Pro Fac Upp Upp War Pro Res Tes Res Qua Sec Acc Total 33203 | 81 864 507 943 617 2654 368 1594 3364 372 234 98 496 3325 658 344 1064 603 1094 832 347 376 200 176 370 777 330 1881 781 270 1613 1635 1169 942 971 1253 Wait 4935 | . 113 . 57 54 204 16 102 472 26 . . 2 507 54 32 105 247 189 149 10 . . . . 195 . 1413 23 7 192 95 124 270 172 105 Move 24638 | 62 646 491 694 537 2259 325 1312 2595 321 211 92 420 2496 550 302 816 322 826 545 294 368 200 163 365 473 315 422 674 247 1181 1203 904 552 601 854 Hop . | . . . . . . . . . . . . . . . . . . . . . . . . . . . . . . . . . . . . Pick Up 313 | 5 18 . 30 1 43 . 12 16 . 4 . 4 24 4 1 . 1 2 15 6 1 . 3 . 7 . 3 9 2 14 28 11 13 18 18 Fast Attach 288 | 7 4 1 17 2 10 . 15 27 4 1 3 3 25 5 1 3 7 2 7 1 2 . 4 . 10 1 3 3 . 16 43 17 5 10 29 Attach 172 | . . . 3 . 4 1 9 10 . . . 6 5 5 . . . . 7 7 . . . . 6 1 8 2 1 13 30 8 8 15 23 Detach 59 | . 1 . . . . . 2 1 . . . . 2 3 . 1 1 . 5 . . . 1 . 5 1 1 3 . 3 13 4 . 4 8 Swap 344 | . 19 2 30 7 19 3 14 43 4 2 . 2 46 1 . 4 1 1 5 6 . . . . 19 2 3 10 2 13 17 15 16 28 10 Drop 439 | . 10 1 33 3 51 . 20 38 5 4 3 1 44 14 2 2 9 4 13 5 3 . 4 . 7 1 4 10 2 10 44 30 16 22 24 Fire 1719 | 7 53 12 79 13 62 23 108 160 10 12 . 42 108 22 6 13 15 70 82 18 2 . 1 5 53 9 24 14 9 163 159 56 62 99 148 Melee 72 | . . . . . . . . 2 1 . . . 68 . . . . . . . . . . . . . . . . . . . . . 1 Ram 11 | . . . . . . . . . 1 . . . . . . . . . . . . . . . . . . . . . . . . . 10 Kick 13 | . . . . . . . . . . . . . . . . . . . . . . . . . 2 . . . . 8 3 . . . . Crush 16 | . . . . . 2 . . . . . . . . . . 1 . . 4 . . . . . . . . . . . . . . 2 7 Escape Stasis 24 | . . . . . . . . . . . . . . . . 8 . . . . . . . . . . . . . . . . . . 16 Rewire 160 | . . . . . . . . . . . . 16 . . . 111 . . . . . . . . . . . 33 . . . . . . . Trap . | . . . . . . . . . . . . . . . . . . . . . . . . . . . . . . . . . . . . Miscellaneous . | . . . . . . . . . . . . . . . . . . . . . . . . . . . . . . . . . . . . Route ------- -11/Scrapyard -10/Materials (discovered 5 exits: *Mat x3 / [*Min x2]) -10/Mines (discovered 2 exits: *Mat x2) -9/Materials (discovered 4 exits: *Mat x2 / *Min / [*Sto]) -9/Mines (discovered 3 exits: *Mat x2 / *Exi) -9/Exiles -8/Mines -8/Materials (discovered 3 exits: *Fac x3) -7/Factory (discovered 6 exits: *Fac x4 / *Low x2) -7/Lower Caves -7/Lower Caves (discovered 2 exits: *Fac / *Dat) -7/Data Miner -6/Proximity Caves -6/Factory (discovered 4 exits: *Fac / *Low / *Ext x2) -6/Waste -6/Factory (discovered 5 exits: *Fac / Low x2 / *Ext x2) -6/Extension (discovered 3 exits: *Fac x2 / *Cet) -6/Cetus (discovered 3 exits: *Fac x2 / [*Arc]) -6/Archives (discovered 3 exits: *Fac / *Hub x2) -6/Hub_04(d) (discovered 2 exits: *Fac x2) -5/Factory (discovered 2 exits: *Upp x2) -5/Upper Caves -5/Upper Caves -5/Zhirov -4/Proximity Caves -4/Factory (discovered 2 exits: *Upp x2) -4/Upper Caves -4/Upper Caves (discovered 2 exits: *Res / *War) -4/Warlord -3/Proximity Caves -3/Research (discovered 3 exits: Arm / *Tes x2) -3/Testing -2/Research (discovered 2 exits: *Acc / *Qua) -2/Quarantine (discovered 2 exits: *Acc / *Sec) -2/Section 7 -1/Access History --------- Turn | Location | Event 23 | -11/Scrapyard | Discovered new exit (range 16) 91 | -11/Scrapyard | Entered Materials 346 | -10/Materials | Discovered new exit (range 6) 357 | -10/Materials | Build established: Mutant 689 | -10/Materials | Discovered new exit (range 3) 764 | -10/Materials | Central database locked down 935 | -10/Materials | Discovered new exit (range 5) 1119 | -10/Materials | Discovered new exit (range 16) 1201 | -10/Materials | Discovered new exit (range 6) 1243 | -10/Materials | Entered Mines 1288 | -10/Mines | Discovered new exit (range 12) 1389 | -10/Mines | Assisted by bots powering up and referring to "LRC-V3" 1578 | -10/Mines | Learned location of Storage (-9) 1850 | -10/Mines | Discovered new exit (range 9) 1873 | -10/Mines | Entered Materials 1873 | -9/Materials | Accompanied by 3 allies 1873 | -9/Materials | Evolved 2 slots: Utility x1, Weapon x1 1933 | -9/Materials | Discovered new exit (range 7) 2265 | -9/Materials | Build established: Tank 2331 | -9/Materials | Discovered new exit (range 11) 2644 | -9/Materials | Repaired Lgt. Armor Plating 2673 | -9/Materials | First assault squad dispatched 2744 | -9/Materials | Discovered new exit (range 4) 2978 | -9/Materials | Core integrity fell below 50% 3144 | -9/Materials | Discovered new exit (range 8) 3300 | -9/Materials | Entered Mines 3300 | -9/Mines | Accompanied by 1 ally 3397 | -9/Mines | Discovered new exit (range 15) 3484 | -9/Mines | Met a Derelict who couldn't figure out how to use a Trap Extractor 3816 | -9/Mines | Discovered new exit (range 3) 3915 | -9/Mines | Found a damaged Exp. Sensor Array with a note attached 3920 | -9/Mines | Found Prototype Device 4064 | -9/Mines | Identified Exp. Sensor Array 4117 | -9/Mines | Learned Materials emergency access door positions 4196 | -9/Mines | Deemed a non-threat by the Exiles lab entrance 4196 | -9/Mines | Discovered new exit (range 5) 4211 | -9/Mines | Entered Exiles 4211 | -9/Exiles | Accompanied by 1 ally 4246 | -9/Exiles | Met 8R-AWN 4273 | -9/Exiles | Met EX-HEX 4330 | -9/Exiles | Met EX-DEC 4342 | -9/Exiles | Learned location of Zion (-6) 4375 | -9/Exiles | Met EX-BIN 4393 | -9/Exiles | Aligned with FarCom system 4394 | -9/Exiles | Given EX-Vault access code 4432 | -9/Exiles | Opened EX-Vault 4440 | -9/Exiles | Found Field Lobotomy Kit 4446 | -9/Exiles | Found Chronowheel 4453 | -9/Exiles | Found YOLO Cannon 4485 | -9/Exiles | Warned to stay clear of 0b10 Research branches 4618 | -9/Exiles | Discovered new exit (range 10) 6531 | -9/Exiles | Attacked by the Exiles 6751 | -9/Exiles | Destroyed 8R-AWN 6759 | -9/Exiles | Found Prototype Device 6759 | -9/Exiles | Identified AS-neutralizer No. 17b 6766 | -9/Exiles | Found Prototype Processor 6766 | -9/Exiles | Identified Exp. Targeting Computer 6775 | -9/Exiles | Lost 3 parts (1p2u) 7192 | -9/Exiles | Build established: Mutant 7475 | -9/Exiles | Destroyed EX-HEX 7527 | -9/Exiles | Build established: Gunner 7554 | -9/Exiles | Destroyed EX-DEC 7615 | -9/Exiles | Destroyed EX-BIN 7945 | -9/Exiles | Found Prototype Protection 7949 | -9/Exiles | Found Prototype Ballistic Gun 7952 | -9/Exiles | Found Prototype Ballistic Gun 8555 | -9/Exiles | Stole three prototypes: Chronowheel, YOLO Cannon, Field Lobotomy Kit 8555 | -9/Exiles | Entered Mines 8555 | -8/Mines | Accompanied by 1 ally 8752 | -8/Mines | Identified 8R-AWN's Boregun (x2) 8973 | -8/Mines | Discovered new exit (range 10) 9126 | -8/Mines | Entered Materials 9126 | -8/Materials | Evolved 2 slots: Utility x2 9632 | -8/Materials | Lost 4 parts (1u3w) 10014 | -8/Materials | Build established: Scavenger-Gunner 10022 | -8/Materials | Discovered new exit (range 3) 10359 | -8/Materials | Core integrity fell below 50% 10697 | -8/Materials | Discovered new exit (range 8) 11026 | -8/Materials | Discovered new exit (range 10) 11737 | -8/Materials | Entered Factory 11737 | -7/Factory | Evolved 2 slots: Utility x2 11853 | -7/Factory | Discovered new exit (range 15) 12044 | -7/Factory | Discovered new exit (range 15) 12070 | -7/Factory | Build established: Scavenger-Skirmisher 12487 | -7/Factory | Build established: Scavenger-Gunner 12598 | -7/Factory | Identified exit to Lower Caves 13247 | -7/Factory | Build established: Scavenger-Tank 13742 | -7/Factory | Build established: Scavenger-Gunner 13984 | -7/Factory | Garrison activated, responded to threat 14310 | -7/Factory | Build established: Scavenger-Tank 14530 | -7/Factory | Discovered new exit (range 10) 14628 | -7/Factory | Fabricated Hrd. Heavy Armor Plating? 15605 | -7/Factory | Repaired Cld. Pulse Rifle 15651 | -7/Factory | Repaired Hrd. Heavy Armor Plating? 15858 | -7/Factory | Discovered new exit (range 16) 16032 | -7/Factory | Garrison activated, responded to threat 16137 | -7/Factory | First assault squad dispatched 16224 | -7/Factory | Repaired Arm. Huge Wheel 16247 | -7/Factory | Repaired Hrd. Heavy Armor Plating 16535 | -7/Factory | Build established: Scavenger-Gunner 16694 | -7/Factory | Core integrity fell below 50% 16715 | -7/Factory | Destroyed 8 combat bots 16810 | -7/Factory | Repaired Hrd. Heavy Armor Plating 16983 | -7/Factory | Entered Lower Caves 17005 | -7/Lower Caves | Attracted the attention of an 0b10 checkpoint 17050 | -7/Lower Caves | Destroyed 7 combat bots 17383 | -7/Lower Caves | Encountered a Warlord checkpoint 17409 | -7/Lower Caves | Learned location of 1 exit from Factory 17512 | -7/Lower Caves | Build established: Tank 17556 | -7/Lower Caves | Discovered new exit (range 11) 17570 | -7/Lower Caves | Entered another Lower Caves area 17583 | -7/Lower Caves | Discovered new exit (range 12) 17899 | -7/Lower Caves | Discovered new exit (range 16) 17902 | -7/Lower Caves | Spotted FS-VF5(f) 17902 | -7/Lower Caves | Spotted HA-E3Y(f) 17902 | -7/Lower Caves | Spotted M6-MBG(f) 17903 | -7/Lower Caves | Encountered a Master Thief 17903 | -7/Lower Caves | Encountered a Master Thief 17903 | -7/Lower Caves | Encountered a Master Thief 17903 | -7/Lower Caves | Spotted 88-AET(f) 17904 | -7/Lower Caves | Encountered a Master Thief 17905 | -7/Lower Caves | Spotted TI-CD9(f) 17906 | -7/Lower Caves | Encountered a Master Thief 17908 | -7/Lower Caves | 8R-AWN's Boregun stolen by Master Thief 17909 | -7/Lower Caves | 8R-AWN's Boregun stolen by Master Thief 17914 | -7/Lower Caves | Adv. Weapon Cycler stolen by Master Thief 17918 | -7/Lower Caves | Adv. Recalibrator stolen by Master Thief 17918 | -7/Lower Caves | Adv. Myomer Leg stolen by Master Thief 17921 | -7/Lower Caves | Destroyed FS-VF5(f) 17954 | -7/Lower Caves | Entered Data Miner 17956 | -7/Data Miner | Discovered new exit (range 6) 17986 | -7/Data Miner | Met Data Miner 18020 | -7/Data Miner | Learned location of Section 7 (-2) 18020 | -7/Data Miner | Acquired the access code to Warlord's prototype stash 18044 | -7/Data Miner | Received God Mode back door access code from Data Miner 18108 | -7/Data Miner | Entered Proximity Caves 18229 | -6/Proximity Caves | Attracted the attention of an 0b10 outpost 18231 | -6/Proximity Caves | Core integrity fell below 20% 18311 | -6/Proximity Caves | Destroyed 7 combat bots 18448 | -6/Proximity Caves | Escorted by Enhanced Grunt 18502 | -6/Proximity Caves | Lost 3 parts (2u1w) 18637 | -6/Proximity Caves | Learned 12 Factory zone layouts 18637 | -6/Proximity Caves | Spotted B-75 Beast 18730 | -6/Proximity Caves | Identified exit to Factory 18737 | -6/Proximity Caves | Attracted the attention of an 0b10 checkpoint 18935 | -6/Proximity Caves | Entered Factory 18935 | -6/Factory | Evolved 2 slots: Propulsion x2 18936 | -6/Factory | Identified exit to Factory 18937 | -6/Factory | Identified exit to Extension 19013 | -6/Factory | Build established: Scavenger-Tank 19056 | -6/Factory | Discovered new exit (range 11) 19389 | -6/Factory | Build established: Scavenger-Mutant 19899 | -6/Factory | Build established: Hacker-Mutant 20734 | -6/Factory | Build established: Tank 21735 | -6/Factory | First assault squad dispatched 21753 | -6/Factory | Incoming assault squad redirected 21829 | -6/Factory | Repaired Arm. Huge Wheel 21861 | -6/Factory | Fabricated Adv. Salvage Targeting Computer? 22148 | -6/Factory | Discovered exit to Extension (range 16) 22270 | -6/Factory | Repaired Arm. Huge Wheel 22294 | -6/Factory | Repaired Imp. Shield Generator 22353 | -6/Factory | Build established: Mutant 22815 | -6/Factory | Incoming assault squad redirected 22874 | -6/Factory | Found Hvy. Reactive Plating 22877 | -6/Factory | Found Hvy. Reactive Plating 23150 | -6/Factory | Incoming assault squad redirected 23160 | -6/Factory | Incoming assault squad redirected 23273 | -6/Factory | Repaired System Restoration Module 23291 | -6/Factory | Spotted B-75 Beast 23363 | -6/Factory | Sucked down chute 23363 | -6/Factory | Entered Waste 23364 | -6/Waste | Joined by Warlord forces that had cleared the area 23619 | -6/Waste | Discovered new exit (range 13) 23787 | -6/Waste | Found Unknown Protection 23787 | -6/Waste | Identified Damper Plating 23792 | -6/Waste | Found Damper Plating 23971 | -6/Waste | Found Damper Plating 24196 | -6/Waste | Entered Factory 24196 | -6/Factory | Accompanied by 17 allies 24510 | -6/Factory | Incoming assault squad redirected 24586 | -6/Factory | Discovered exit to Factory (range 8) 24588 | -6/Factory | Identified exit to Lower Caves 24606 | -6/Factory | Build established: Scavenger-Gunner 24778 | -6/Factory | Entered Extension 24778 | -6/Extension | Accompanied by 16 allies 25079 | -6/Extension | Spotted B-75 Beast 25084 | -6/Extension | Allies destroyed B-75 Beast 25104 | -6/Extension | Spotted B-75 Beast 25107 | -6/Extension | Allies destroyed B-75 Beast 25421 | -6/Extension | Energy Cycler disabled 25422 | -6/Extension | Rescued a captive Derelict 25424 | -6/Extension | Rescued a captive Derelict 25424 | -6/Extension | Rescued a captive Derelict 25430 | -6/Extension | Rescued a captive Derelict 25431 | -6/Extension | Rescued a captive Derelict 25431 | -6/Extension | Rescued a captive Derelict 25432 | -6/Extension | Rescued a captive Derelict 25638 | -6/Extension | Rescued A7 25792 | -6/Extension | Build established: Commander-Gunner 25890 | -6/Extension | Incoming investigation squad redirected 25951 | -6/Extension | Repaired Hvy. Treads 25988 | -6/Extension | Discovered exit to Factory (range 14) 26439 | -6/Extension | Discovered exit to Factory (range 10) 26441 | -6/Extension | Discovered new exit (range 6) 26480 | -6/Extension | Entered Cetus 26480 | -6/Cetus | Accompanied by 22 allies (A7) 26485 | -6/Cetus | Acquired a Cetus Manufacturing Module code from A7 26501 | -6/Cetus | Spotted Cetus Guard 26504 | -6/Cetus | Spotted Cetus Guard 26505 | -6/Cetus | Spotted Cetus Guard 26505 | -6/Cetus | Spotted Cetus Guard 26512 | -6/Cetus | Allies destroyed Cetus Guard 26517 | -6/Cetus | Allies destroyed Cetus Guard 26519 | -6/Cetus | Allies destroyed Cetus Guard 26520 | -6/Cetus | Allies destroyed Cetus Guard 26802 | -6/Cetus | Discovered exit to Factory (range 16) 26848 | -6/Cetus | Build established: Scavenger-Gunner 26958 | -6/Cetus | Escorted A7 to Cetus Mainframe 26983 | -6/Cetus | Discovered new exit (range 15) 27064 | -6/Cetus | Started Cetus Manufacturing Module 27089 | -6/Cetus | Manufactured an Enhanced Grunt 27114 | -6/Cetus | Manufactured an Enhanced Grunt 27120 | -6/Cetus | Spotted Cetus Guard 27121 | -6/Cetus | Spotted Cetus Guard 27124 | -6/Cetus | Spotted Cetus Guard 27124 | -6/Cetus | Spotted Cetus Guard 27136 | -6/Cetus | Destroyed Cetus Guard 27137 | -6/Cetus | Allies destroyed Cetus Guard 27139 | -6/Cetus | Manufactured an Enhanced Grunt 27139 | -6/Cetus | Allies destroyed Cetus Guard 27142 | -6/Cetus | Destroyed Cetus Guard 27152 | -6/Cetus | Discovered exit to Factory (range 16) 27163 | -6/Cetus | Met Revision 17 27164 | -6/Cetus | Manufactured an Enhanced Grunt 27189 | -6/Cetus | Manufactured an Enhanced Grunt 27356 | -6/Cetus | Entered Archives 27356 | -6/Archives | Accompanied by 11 allies (A7) 27361 | -6/Archives | Received a hacking code to weaken MAIN.C 27463 | -6/Archives | Build established: Commander-Gunner 27489 | -6/Archives | Discovered new exit (range 13) 27794 | -6/Archives | Discovered exit to Factory (range 16) 28001 | -6/Archives | Discovered new exit (range 15) 39415 | -6/Archives | Entered Hub_04(d) 39415 | -6/Hub_04(d) | Accompanied by 7 allies 39674 | -6/Hub_04(d) | Discovered exit to Factory (range 15) 39909 | -6/Hub_04(d) | Discovered exit to Factory (range 10) 40010 | -6/Hub_04(d) | Build established: Scavenger-Gunner 40115 | -6/Hub_04(d) | First assault squad dispatched 40136 | -6/Hub_04(d) | Incoming assault squad redirected 40428 | -6/Hub_04(d) | Network Hub disabled 40457 | -6/Hub_04(d) | Spotted Lightning 40457 | -6/Hub_04(d) | Spotted Lightning 40457 | -6/Hub_04(d) | Spotted Lightning 40469 | -6/Hub_04(d) | Spotted Lightning 40492 | -6/Hub_04(d) | Incoming assault squad redirected 40574 | -6/Hub_04(d) | Destroyed Lightning 40581 | -6/Hub_04(d) | Destroyed Lightning 40640 | -6/Hub_04(d) | Destroyed Lightning 40654 | -6/Hub_04(d) | Found Prototype Device 40654 | -6/Hub_04(d) | Identified Exp. Phase Shifter 40721 | -6/Hub_04(d) | Found Exp. Targeting Computer 40745 | -6/Hub_04(d) | Found Prototype Energy Cannon 40754 | -6/Hub_04(d) | Found Exp. Phase Shifter 40805 | -6/Hub_04(d) | Network Hub disabled 40915 | -6/Hub_04(d) | Entered Factory 40915 | -5/Factory | Evolved 2 slots: Propulsion x2 40916 | -5/Factory | Identified exit to Upper Caves 41038 | -5/Factory | Spotted B-75 Beast 41215 | -5/Factory | First assault squad dispatched 41316 | -5/Factory | Discovered exit to Upper Caves (range 3) 41319 | -5/Factory | Entered Upper Caves 41319 | -5/Upper Caves | Spotted DX-DOI(f) 41320 | -5/Upper Caves | Encountered a Master Thief 41320 | -5/Upper Caves | Chronowheel stolen by Master Thief 41706 | -5/Upper Caves | Discovered new exit (range 15) 41722 | -5/Upper Caves | Entered another Upper Caves area 41852 | -5/Upper Caves | Learned Factory terminal intel 41927 | -5/Upper Caves | Discovered new exit (range 7) 41931 | -5/Upper Caves | Attracted the attention of an 0b10 checkpoint 41934 | -5/Upper Caves | Entered Zhirov 41934 | -5/Zhirov | Discovered new exit (range 3) 41955 | -5/Zhirov | Met Zhirov 41973 | -5/Zhirov | Learned location of Quarantine (-2) 41973 | -5/Zhirov | Learned location of Testing (-3) 41973 | -5/Zhirov | Learned location of Command (-1) 41993 | -5/Zhirov | Zhirov requested help retrieving the SGEMP Prototype 42009 | -5/Zhirov | Found Alien Artifact 42009 | -5/Zhirov | Identified Integrated Reactor 42009 | -5/Zhirov | Installed Integrated Reactor, increased core energy generation (+10) 42025 | -5/Zhirov | Found Alien Artifact 42122 | -5/Zhirov | Entered Proximity Caves 42360 | -4/Proximity Caves | Learned Research emergency access door positions 42383 | -4/Proximity Caves | Learned location of Armory (-3) 42492 | -4/Proximity Caves | Discovered new exit (range 16) 42526 | -4/Proximity Caves | Entered Factory 42526 | -4/Factory | Evolved 2 slots: Utility x2 42527 | -4/Factory | Loaded intel: 26 terminal locations 42677 | -4/Factory | Repaired Adv. KE Penetrator? 42682 | -4/Factory | Repaired Broken Enh. Biometal Leg 42819 | -4/Factory | Repaired Enh. Biometal Leg 42877 | -4/Factory | Identified exit to Upper Caves 42943 | -4/Factory | Destroyed 9 combat bots 43244 | -4/Factory | Cargo convoy interrupted 43245 | -4/Factory | Local machine network offline 43245 | -4/Factory | Spotted Striker 43251 | -4/Factory | Spotted Striker 43255 | -4/Factory | Assimilated Striker with FLK Orb 43260 | -4/Factory | Assimilated A-27 Freighter with FLK Orb 43436 | -4/Factory | Entered Upper Caves 43438 | -4/Upper Caves | Attracted the attention of an 0b10 checkpoint 43499 | -4/Upper Caves | Build established: Scavenger-Tank 43517 | -4/Upper Caves | Encountered a Warlord checkpoint 43626 | -4/Upper Caves | Learned Research garrison access intel 43760 | -4/Upper Caves | Discovered new exit (range 13) 43791 | -4/Upper Caves | Learned location of 1 exit from Proximity Caves 43805 | -4/Upper Caves | Entered another Upper Caves area 43816 | -4/Upper Caves | Encountered a Warlord checkpoint 43831 | -4/Upper Caves | Discovered new exit (range 10) 43846 | -4/Upper Caves | Attracted the attention of an 0b10 checkpoint 43944 | -4/Upper Caves | Attracted the attention of an 0b10 outpost 44111 | -4/Upper Caves | Spotted B-86 Titan 44144 | -4/Upper Caves | Identified Transdimensional Reconstructor 44144 | -4/Upper Caves | Warped through subspace 44149 | -4/Upper Caves | Lost 4 parts (2u2w) 44374 | -4/Upper Caves | Build established: Scavenger-Mutant 44852 | -4/Upper Caves | Build established: Scavenger-Tank 45720 | -4/Upper Caves | Discovered new exit (range 5) 45760 | -4/Upper Caves | Entered Warlord 45835 | -4/Warlord | Discovered new exit (range 14) 46102 | -4/Warlord | Visited the Vortex Lab 46110 | -4/Warlord | Found Prototype Energy Gun 46112 | -4/Warlord | Found Prototype Energy Gun 46113 | -4/Warlord | Identified Vortex Rifle (x2) 46119 | -4/Warlord | Warlord's base attacked by MAIN.C 46351 | -4/Warlord | Found Prototype Device 46351 | -4/Warlord | Identified Minesniffer Drone Bay 46356 | -4/Warlord | Found Minesniffer Drone Bay 46364 | -4/Warlord | Met Warlord 46374 | -4/Warlord | Opened Warlord's prototype stash 46391 | -4/Warlord | Found Prototype Hackware 46391 | -4/Warlord | Identified Ghost Barrier 46396 | -4/Warlord | Found Prototype Processor 46404 | -4/Warlord | Found Prototype Reactor 46469 | -4/Warlord | Warlord forces counterattacked 46479 | -4/Warlord | Spotted B-90 Cyclops 46481 | -4/Warlord | Spotted Striker 46483 | -4/Warlord | Spotted Striker 46489 | -4/Warlord | Destroyed B-90 Cyclops 46549 | -4/Warlord | Spotted B-90 Cyclops 46607 | -4/Warlord | Entered Proximity Caves 46607 | -3/Proximity Caves | Accompanied by 3 allies 46608 | -3/Proximity Caves | Identified exit to Research 46882 | -3/Proximity Caves | Spotted B-86 Titan 46905 | -3/Proximity Caves | Entered Research 46905 | -3/Research | Accompanied by 2 allies 46905 | -3/Research | Evolved 2 slots: Power x1, Utility x1 46907 | -3/Research | Loaded intel: 3 garrison access locations 46913 | -3/Research | Identified exit to Armory 46913 | -3/Research | Identified exit to Testing 46993 | -3/Research | Garrison activated, responded to threat 47027 | -3/Research | Incoming assault squad redirected 47056 | -3/Research | Identified Exp. Armor Integrity Analyzer 47121 | -3/Research | Found Imp. Powered Armor 47124 | -3/Research | Found Imp. Powered Armor 47126 | -3/Research | Spotted B-86 Titan 47127 | -3/Research | Found Imp. Powered Armor 47129 | -3/Research | Found Imp. Powered Armor 47203 | -3/Research | Incoming investigation squad redirected 47407 | -3/Research | Repaired Broken Enh. Biometal Leg? 47655 | -3/Research | First assault squad dispatched 47682 | -3/Research | Incoming assault squad redirected 47699 | -3/Research | Repaired Broken Enh. Biometal Leg? 47761 | -3/Research | Repaired Enh. Flexi-carbon Leg 47782 | -3/Research | Build established: Scavenger-Mutant 48177 | -3/Research | Incoming assault squad redirected 48674 | -3/Research | System corruption reached 10% 48758 | -3/Research | Spotted B-86 Titan 48882 | -3/Research | Build established: Scavenger-Gunner 49006 | -3/Research | Entered Testing 49163 | -3/Testing | Found Prototype Device 49163 | -3/Testing | Identified Imp. Particle Accelerator 49173 | -3/Testing | Found Imp. Particle Accelerator 49223 | -3/Testing | Found Prototype Processor 49223 | -3/Testing | Identified Spectral Analyzer 49228 | -3/Testing | Found Prototype Processor 49228 | -3/Testing | Identified Exp. Target Analyzer 49236 | -3/Testing | Repaired Enh. Biometal Leg? 49316 | -3/Testing | Repaired Broken Adv. KE Penetrator 49445 | -3/Testing | Identified Vortex Chain Reactor 49474 | -3/Testing | Lost 6 parts (1p1n1u3w) 49826 | -3/Testing | Found Prototype Energy Cannon 49826 | -3/Testing | Identified Potential Cannon 49829 | -3/Testing | Found Prototype Energy Cannon 49829 | -3/Testing | Identified Imp. Potential Cannon 49834 | -3/Testing | Identified EMDS 50012 | -3/Testing | Lost 3 parts (1n1u1w) 50076 | -3/Testing | Build established: Scavenger-Mutant 50101 | -3/Testing | Found Tesla Bomb Launcher 50366 | -3/Testing | Found Prototype Device 50366 | -3/Testing | Identified Exp. EM Disruption Field 50377 | -3/Testing | Found Adv. EM Disruption Field 50506 | -3/Testing | First assault squad dispatched 50531 | -3/Testing | Incoming assault squad redirected 50603 | -3/Testing | Spotted PD-968DZ4FYD3 50686 | -3/Testing | System corruption reached 30% 50688 | -3/Testing | Core integrity fell below 50% 51071 | -3/Testing | Scanned by Researcher 51089 | -3/Testing | Lost 3 parts (1n2u) 51277 | -3/Testing | Lost 3 parts (1n2w) 51331 | -3/Testing | Destroyed 8 combat bots 51339 | -3/Testing | Lost 5 parts (1p2n2u) 51340 | -3/Testing | Found Prototype Protection 51340 | -3/Testing | Identified SHELL Armor 51374 | -3/Testing | Spotted Alpha 7 51452 | -3/Testing | Discovered new exit (range 10) 51508 | -3/Testing | Entered Research 51508 | -2/Research | Warlord forces began assault on 0b10 51508 | -2/Research | Evolved 2 slots: Propulsion x1, Utility x1 51618 | -2/Research | Research machine network offline 51684 | -2/Research | Met up with Warlord 51787 | -2/Research | Discovered new exit (range 21) 51931 | -2/Research | Spotted Striker 52089 | -2/Research | Borebot progress halted 52139 | -2/Research | Found Prototype Device 52139 | -2/Research | Identified Exp. Transmission Jammer 52326 | -2/Research | Spotted Striker 52327 | -2/Research | Destroyed Striker 52342 | -2/Research | Borebot progress halted 52457 | -2/Research | Spotted Executioner 52465 | -2/Research | Spotted Striker 52470 | -2/Research | Destroyed Executioner 52477 | -2/Research | Destroyed Striker 52505 | -2/Research | Found Prototype Processor 52505 | -2/Research | Identified Exp. Core Analyzer 52549 | -2/Research | Borebot progress halted 52596 | -2/Research | Build established: Scavenger-Gunner 52803 | -2/Research | Warlord destroyed during the assault 52826 | -2/Research | Spotted Executioner 52826 | -2/Research | Spotted Striker 52852 | -2/Research | Destroyed Striker 52865 | -2/Research | Destroyed Executioner 53064 | -2/Research | Identified exit to Access 53219 | -2/Research | Discovered new exit (range 13) 53235 | -2/Research | Identified exit to Quarantine 53256 | -2/Research | Entered Quarantine 53377 | -2/Quarantine | Found Transdimensional Reconstructor 53383 | -2/Quarantine | Found Transdimensional Reconstructor 53387 | -2/Quarantine | Warped through subspace 53389 | -2/Quarantine | Found Transdimensional Reconstructor 53436 | -2/Quarantine | Found Alien Artifact 53436 | -2/Quarantine | Identified Phase Redirector 53547 | -2/Quarantine | First assault squad dispatched 53566 | -2/Quarantine | Incoming assault squad redirected 53620 | -2/Quarantine | Spotted Alpha 7 53634 | -2/Quarantine | Found Alien Artifact 53634 | -2/Quarantine | Identified Core Reset Matrix 53634 | -2/Quarantine | Used Core Reset Matrix 53638 | -2/Quarantine | Detected hypermatrix surge 53638 | -2/Quarantine | Sensed 8 artifacts in vicinity 53852 | -2/Quarantine | Discovered exit to Access (range 5) 53926 | -2/Quarantine | Found Core Cannon 53972 | -2/Quarantine | Found Subatomic Replicator 54273 | -2/Quarantine | Build established: Alien-Mutant 54390 | -2/Quarantine | Spotted Fortress 54566 | -2/Quarantine | Discovered new exit (range 5) 54572 | -2/Quarantine | Entered Section 7 54573 | -2/Section 7 | Sensed 15 artifacts in vicinity 54771 | -2/Section 7 | Repaired Broken Biometal Heavy Treads 54888 | -2/Section 7 | Destroyed 7 combat bots 54895 | -2/Section 7 | Build established: Scavenger-Mutant 54989 | -2/Section 7 | Found Integrated Mediator 54989 | -2/Section 7 | Installed Integrated Mediator, increased core attachment efficiency. 55072 | -2/Section 7 | First assault squad dispatched 55113 | -2/Section 7 | Found Prototype Launcher 55113 | -2/Section 7 | Identified Enh. Gamma Bomb Array 55117 | -2/Section 7 | Found Enh. Gamma Bomb Array 55124 | -2/Section 7 | Core integrity fell below 50% 55141 | -2/Section 7 | Found Exp. Core Analyzer 55166 | -2/Section 7 | Spotted S7 Guard 55587 | -2/Section 7 | Found Integrity Redistributor 55616 | -2/Section 7 | Spotted S7 Guard 55626 | -2/Section 7 | Spotted S7 Guard 55636 | -2/Section 7 | Incoming assault squad redirected 55637 | -2/Section 7 | Incoming assault squad redirected 55641 | -2/Section 7 | Destroyed S7 Guard 55662 | -2/Section 7 | Destroyed 8 combat bots 55662 | -2/Section 7 | Destroyed S7 Guard 55689 | -2/Section 7 | Found Sigix Shearcannon 55745 | -2/Section 7 | Found Core Physics Calibrator 55912 | -2/Section 7 | High security lockdown imminent 55987 | -2/Section 7 | Discovered exit to Access (range 7) 55992 | -2/Section 7 | High security lockdown engaged 55996 | -2/Section 7 | Entered Access 55996 | -1/Access | Evolved 2 slots (calibrated): -Propulsion x1, Utility x4, -Weapon x1 56025 | -1/Access | Lost 3 parts (1p1u1w) 56043 | -1/Access | Incoming investigation squad redirected 56192 | -1/Access | Found Unknown Protection 56192 | -1/Access | Identified Adv. Powered Armor 56195 | -1/Access | Found Adv. Powered Armor 56199 | -1/Access | Found Adv. Powered Armor 56202 | -1/Access | Found Adv. Powered Armor 56205 | -1/Access | Found Adv. Powered Armor 56207 | -1/Access | Found Adv. Powered Armor 56537 | -1/Access | First assault squad dispatched 56643 | -1/Access | System corruption reached 10% 56654 | -1/Access | Incoming assault squad redirected 56689 | -1/Access | Destroyed 11 combat bots 56739 | -1/Access | Garrison activated, responded to threat 56746 | -1/Access | Warped through subspace 56754 | -1/Access | Warped through subspace 56774 | -1/Access | Incoming assault squad redirected 56927 | -1/Access | High security lockdown imminent 57007 | -1/Access | High security lockdown engaged 57204 | -1/Access | Destroyed 14 combat bots 57302 | -1/Access | Destroyed 12 combat bots 57306 | -1/Access | Released all parts (13) 57309 | -1/Access | Lost 11 parts (1p1n7u2w) 57312 | -1/Access | Spotted Investigator 57312 | -1/Access | Assimilated Investigator with FLK Orb 57346 | -1/Access | Spotted B-99 Colossus 57348 | -1/Access | Core integrity fell below 50% 57352 | -1/Access | Assimilated B-99 Colossus with FLK Orb 57364 | -1/Access | Spotted Striker 57372 | -1/Access | Emitted hypermatrix ping 57377 | -1/Access | Assembled emerged from beneath the floor 57403 | -1/Access | Lost 3 parts (1n2u) 57432 | -1/Access | Spotted B-99 Colossus 57434 | -1/Access | Assimilated B-99 Colossus with FLK Orb 57441 | -1/Access | Core integrity fell below 20% 57477 | -1/Access | Assembled emerged from beneath the floor 57487 | -1/Access | Assembled emerged from beneath the floor 57512 | -1/Access | Spotted Striker 57530 | -1/Access | Build established: Alien-Mutant 57537 | -1/Access | Destroyed by H-88 Terminator with KE Penetrator Last Messages --------------- 57499_ as-11199 destroyed. 57510_ Triggered Gamma Bomb Trap. 57510_ A bubble of electromagnetic force engulfs the area. 57510_ Door malfunctions. 57510_ W-44 Eye destroyed. 57512_ C-30 ARC bursts open, deploying its payload. 57512_ P-80 Master unfolds itself. 57512_ Striker unfolds itself. 57512_ I-47 Archangel unfolds itself. 57513_ System corrupted: Substantial component data lost. 57524_ Knocked back. 57531_ Slug penetrates Wall. 57532_ System corrupted: Energy discharge (-34). 57533_ Slammed into W-44 Eye. 57534_ Wave Collapse Detector explodes. 57534_ Slug penetrates Wall. 57534_ K-01 Serf destroyed. 57535_ The unstable cave ceiling collapses. 57537_ Slug penetrates Wall. [Achievement: Torch] Map ----- +----------------------------------------------------+ | ?????????????????????????????????????????????????? | | ?????????????????????????????????????????????????? | | ?????????????????????????????????????????????????? | | ?????????????????????????????????????????????????? | | ?????????????????????????????????????????????????? | | ?????????????????????????????????????????????????? | | ?????????????????????????????????????????????????? | | ?????????????????????????????????????????????????? | | ?????????????????????????????????????????????????? | | ?????????????????????????????????????????????????? | | ?????????????????????????????????????????????????? | | ?????????????????????????????????????????????????? | | ?????????????????????????????????????????????????? | | ?????????????????????????????????????????????????? | | ??????????????????###???########?????????????????? | | ??????????????????# #?????????????????? | | ??????????????????# ##########+#??????? | | ??????????????????# """"""" # ???????? | | ??? ?????????????# """Y""" # ????????? | | ??? ?????????????# # ?????????? | | ? ?????????????# # ???????????? | | # ?????????????# % # ##########???? | | # ? ?????????????# = # # #???? | | # ? ?????????????# # # #???? | | # ? ?????????????# w + # #???? | | ? #????????????# @ # # "" #???? | | # ? #????????????# # + "" #???? | | #/## #????????????### # ## # """" #???? | | + #?????????? ??# # ## # """" #???? | | # #????????? ???### # #### # """" #???? | | # #########+######?##### #??# # """" #???? | | ! # ????? ? # """" #???? | | + ??? # "" #???? | | " # ?? # #??#? | | " # ?? # #? #? | | " #### ######+###?????#####+######## | #? #? | | " #??# #???????????????????????????# # #? | | " #??# #???????????????????????????# = # #? | | #??# #???????????????????????????# # #? | | #??# #???????????????????????????# # #? | | ####??# #???????????????????????????#######+## #? | | #???# #?????????????????????????????????# % #? | | #???# #?????????????????????????????????# #? | | #???# #?????????????????????????????????# #? | | #???# #??????????????????###########????# #? | | #???# #??????????????????# #????# #? | | #???# #??????????????????# #????# #? | | ###???#%#?????????????????## ##???# #? | | #######%################### #???# #? | | # % #???# #? | +----------------------------------------------------+ Best States ------------- Heat Dissipation 128 Energy Generation 65 Energy Capacity 1800 Matter Stores 300 Matter Capacity 300 Sight Range 22 Robot Scan Range 20 Terrain Scan Density 10 Jamming Range 22 EM Shielding 4 Armor Coverage 5000 Resistance: TH 15 Resistance: EM 90 Core Shielding 30 Propulsion Shielding 90 Utility Shielding 66 Weapon Shielding 66 Phase Shifting 20 Evasion (%) 82 Targeting Accuracy 12 Target Analysis 10 Core Analysis 8 Armor Integrity Analysis 50 Recoil Reduction 7 Energy Filtering 50 Particle Charging 40 Salvage Targeting 4 Offensive Hacking 22 Defensive Hacking 20 Item Schematics ----------------- None Robot Schematics ------------------ None Fabricated ------------ Hrd. Heavy Armor Plating | x1 | -7/Factory Adv. Salvage Targeting Computer | x1 | -6/Factory Alien Tech Used ----------------- Integrated Reactor Transdimensional Reconstructor Phase Redirector Core Reset Matrix Integrated Mediator Core Physics Calibrator Core Cannon Sigix Shearcannon Achievements -------------- Torch Challenges ------------ None Game ------ Seed PortableBurstMatter Manual? 0 Play Time 09:23:25 Cumulative 605.5 hours Start 2022.11.17 @ 01:02:42 End 2022.11.20 @ 11:23:00 Sessions 25 Manual Loads 0 Difficulty Rogue Special Mode None Game No. 194 Rogue 190 Adventurer 4 Explorer 0 Win Type - Total 16 Types 7/2/5/0/0/0/1/1/0 Lore% 87 Gallery% 88 Achievement% 77 Wizard Run 0 Options --------- ASCII 1 Keyboard 0 Movement Arrows Keybinds 0 Fullscreen 1 Font 18/SmallcapsGlow Map View 76x50 Tactical HUD 1 Map Filters NONE Filters NONE Steam 1 RUN: 604fb587-6f31-4bd6-b950-45880c0c12f3